Workbook

Sheet BRSPorc
F3: Bilan Réel Simplifié "Porc"
D5: D'après le document du RMT Elevage et Environnement
F7: Evaluation des rejets d’azote - phosphore -
F8: potassium - cuivre et zinc des porcs.
F9: Influence de l'alimentation, du mode de logement
F10: et de la gestion des effluents (2016)
F19: Le bilan simplifié a été développé par le CORPEN
F20: à partir du modèle INRA de calcul des rejets (Réalisation J.Y. Dourmad )
F21: Cette nouvelle version tient compte des mises-à-jour réalisées par le RMT
F22: version 4.01 Avril 2018
C25: Composition du groupe de travail
C27: Jean-Yves Dourmad, INRA Agrocampus Ouest, UMR Pegase (animateur)
C28: Pascal Levasseur, IFIP-Institut du Porc (animateur)
C29: Marie-Line Daumer, Irstea, Rennes
C30: Mélynda Hassouna, INRA Agrocampus Ouest, UMR SAS
C31: Brigitte Landrain, Chambres d'Agricultures de Bretagne.
C32: Nolwenn Lemaire, Union des Groupements de Producteurs de Viande de Bretagne.
C33: Aurore Loussouarn, Chambres d'Agricultures de Bretagne.
C34: Yvon Salaün, IFIP-Institut du Porc
C35: Sandrine Espagnol, IFIP-Institut du Porc, Animatrice du RMT Élevages et Environnement
F39: L'utilisation de cet outil ou des résultats qu'il produit est faite sous la responsabilité
F40: de l'utilisateur, et ne saurait engager celle du RMT ou de l'INRA.

Sheet Menu
D4: Saisie des caractéristiques de l'élevage
D10: Affichage des résultats
D16: Imprimer un rapport
D22: Références - Contacts
F24: Rapport RMT Elevage et Environnement (2016)
F25: Envoyer vos remarques sur cet outil

Sheet Elevage
B3: Références | C3: EARL Pemoc'h Gouez
B4: de l'élevage | C4: 200 truies naisseur-engraisseur
B7: PERIODE de BILAN
B9: Date début | C9: 2017-01-01 | L9: =IF(E9>1900,E9-1900,E9) -> 0 | M9: =C9 -> 2017-01-01
B10: Date fin | C10: =C9+C11-1 -> 2017-12-31 | L10: =IF(E10>1900,E10-1900,E10) -> 0 | M10: =C10 -> 2017-12-31
B11: Durée | C11: =DATE(YEAR(C9)+1,MONTH(C9),DAY(C9))-DATE(YEAR(C9),MONTH(C9),DAY(C9)) -> 365
B13: EFFLUENTS
L15: Zone de calcul
B18: =+L66 -> 100% LISIER (en % de N excrété)
B21: ANIMAUX - EFFECTIFS | C21: Effectif | D21: Effectif | E21: PV moyen | F21: PV moyen | G21: % sur | H21: % raclage | I21: % sur
C22: =C9 -> 2017-01-01 | D22: =C10 -> 2017-12-31 | E22: =C9 -> 2017-01-01 | F22: =C10 -> 2017-12-31 | G22: litières | H22: en V | I22: lisier | M22: TMP | N22: N Deb | O22: N Fin | P22: P Deb | Q22: P Fin | R22: K Deb | S22: K Fin | T22: Cu Deb | U22: Cu Fin | V22: Zn Deb | W22: Zn Fin | X22: Pds Deb | Y22: Pds Fin
B23: Truies en production1 | C23: 180 | D23: 180 | E23: 210 | F23: 210 | I23: =100-G23 -> 100 | L23: Truies | M23: 58 | N23: =((EXP(-0.9559-0.0145*M23)*(0.96*E23)^(0.7417+0.0044*M23))/6.25*1000)*C23/1000 -> 947.0116908 | O23: =((EXP(-0.9559-0.0145*M23)*(0.96*F23)^(0.7417+0.0044*M23))/6.25*1000)*D23/1000 -> 947.0116908 | P23: =5.35*E23*C23/1000 -> 202.23 | Q23: =(5.35*F23)*D23/1000 -> 202.23 | R23: =(-0.00345*E23^2+2.53338*E23)*C23/1000 -> 68.375664 | S23: 68.375664 | T23: =(1.006*E23)*C23/1000000 -> 0.0380268 | U23: =(1.006*F23)*D23/1000000 -> 0.0380268 | V23: =21.8*E23*C23/1000000 -> 0.82404 | W23: 0.82404 | X23: =C23*E23 -> 37800 | Y23: 37800
B24: Jeunes truies2 | C24: 20 | D24: 20 | E24: 130 | F24: 130 | I24: =100-G24 -> 100 | L24: Jeunes truies | M24: 58 | N24: =((EXP(-0.9559-0.0145*M24)*(0.96*E24)^(0.7417+0.0044*M24))/6.25*1000)*C24/1000 -> 65.23528197 | O24: =((EXP(-0.9559-0.0145*M24)*(0.96*F24)^(0.7417+0.0044*M24))/6.25*1000)*D24/1000 -> 65.23528197 | P24: =5.35*E24*C24/1000 -> 13.91 | Q24: =(5.35*F24)*D24/1000 -> 13.91 | R24: 5.420688 | S24: 5.420688 | T24: =(1.006*E24)*C24/1000000 -> 0.0026156 | U24: =(1.006*F24)*D24/1000000 -> 0.0026156 | V24: 0.05668 | W24: 0.05668 | X24: 2600 | Y24: 2600
B25: Verrats | C25: 2 | D25: 2 | E25: 250 | F25: 250 | I25: =100-G25 -> 100 | L25: Verrats | M25: 58 | N25: =((EXP(-0.9559-0.0145*M25)*(0.96*E25)^(0.7417+0.0044*M25))/6.25*1000)*C25/1000 -> 12.51984092 | O25: =((EXP(-0.9559-0.0145*M25)*(0.96*F25)^(0.7417+0.0044*M25))/6.25*1000)*D25/1000 -> 12.51984092 | P25: =5.35*E25*C25/1000 -> 2.675 | Q25: =(5.35*F25)*D25/1000 -> 2.675 | R25: 0.83544 | S25: 0.83544 | T25: 0 | U25: =(1.006*F25)*D25/1000000 -> 0.000503 | V25: 0.0109 | W25: 0.0109 | X25: 500 | Y25: 500
B26: Porcelets en post sevrage | C26: 800 | D26: 800 | E26: 15 | F26: 15 | I26: =100-G26 -> 100 | L26: Post-sevrés | M26: =IF(Y32<>0,Y32,56) -> 60.8 | N26: =((EXP(-0.9559-0.0145*M26)*(0.96*E26)^(0.7417+0.0044*M26))/6.25*1000)*C26/1000 -> 300.7713419 | O26: =((EXP(-0.9559-0.0145*M26)*(0.96*F26)^(0.7417+0.0044*M26))/6.25*1000)*D26/1000 -> 300.7713419 | P26: =5.35*E26*C26/1000 -> 64.2 | Q26: =(5.35*F26)*D26/1000 -> 64.2 | R26: 29.77956 | S26: 29.77956 | T26: 0 | U26: =(1.006*F26)*D26/1000000 -> 0.012072 | V26: 0.2616 | W26: 0.2616 | X26: 12000 | Y26: 12000
B27: Porcs en croissance/finition | C27: 1600 | D27: 1600 | E27: 73 | F27: 73 | I27: =100-G27-pcrv -> 100 | L27: Porcs engrais | M27: =IF(Y32<>0,Y32,56) -> 60.8 | N27: =((EXP(-0.9559-0.0145*M27)*(0.96*E27)^(0.7417+0.0044*M27))/6.25*1000)*C27/1000 -> 2970.532618 | O27: =((EXP(-0.9559-0.0145*M27)*(0.96*F27)^(0.7417+0.0044*M27))/6.25*1000)*D27/1000 -> 2970.532618 | P27: =5.35*E27*C27/1000 -> 624.88 | Q27: =(5.35*F27)*D27/1000 -> 624.88 | R27: 266.482704 | S27: 266.482704 | T27: 0 | U27: =(1.006*F27)*D27/1000000 -> 0.1175008 | V27: 2.54624 | W27: 2.54624 | X27: 116800 | Y27: 116800
L28: Total | N28: =SUM(N23:N27) -> 4296.070774 | O28: 4296.070774 | P28: 907.895 | Q28: 907.895 | R28: 370.894056 | S28: 370.894056 | T28: 0.0406424 | U28: 0.1707182 | V28: 3.69946 | W28: 3.69946 | X28: 169700 | Y28: 169700
K29: =(G27+H27)<=100 -> TRUE
B30: SORTIE D'ANIMAUX | C30: Nombre | D30: Poids vif | E30: T.M.P.3 | F30: Poids
D31: moyen, kg | F31: total, kg | M31: Pds Sorti | N31: N Sorti | O31: P Sorti | P31: K Sorti | Q31: Cu Sorti | R31: Zn Sorti | S31: Pds Entré | T31: N Entré | U31: P entré | V31: K entré | W31: Cu entré | X31: Zn entré | Y31: TMP
B32: Porcelets sevrés | F32: =C32*D32 -> 0 | L32: =+B32 -> Porcelets sevrés | M32: =D32*C32 -> 0 | N32: =((EXP(-0.9559-0.0145*Y32)*(0.96*D32)^(0.7417+0.0044*Y32))/6.25*1000)*C32/1000 -> 0 | O32: =5.35*F32/1000 -> 0 | P32: =(-0.00345*D32^2+2.53338*D32)*C32/1000 -> 0 | Q32: =(1.006*D32)*C32/1000000 -> 0 | R32: =21.8*D32*C32/1000000 -> 0 | S32: =C41*D41 -> 0 | T32: =((EXP(-0.9559-0.0145*Y32)*(0.96*D41)^(0.7417+0.0044*Y32))/6.25*1000)*C41/1000 -> 0 | U32: =(5.35*D41)*C41/1000 -> 0 | V32: =(-0.00345*D41^2+2.53338*D41)*C41/1000 -> 0 | W32: =(1.006*D41)*C41/1000000 -> 0 | X32: =21.8*D41*C41/1000000 -> 0 | Y32: =IF(E32<>0,E32,Y35) -> 60.8
B33: Porcelets "de 25-35 kg" | F33: =C33*D33 -> 0 | L33: Porcelets "de 25-35 kg" | M33: =D33*C33 -> 0 | N33: =((EXP(-0.9559-0.0145*Y33)*(0.96*D33)^(0.7417+0.0044*Y33))/6.25*1000)*C33/1000 -> 0 | O33: =5.35*F33/1000 -> 0 | P33: =(-0.00345*D33^2+2.53338*D33)*C33/1000 -> 0 | Q33: =(1.006*D33)*C33/1000000 -> 0 | R33: =21.8*D33*C33/1000000 -> 0 | S33: =C42*D42 -> 0 | T33: =((EXP(-0.9559-0.0145*Y33)*(0.96*D42)^(0.7417+0.0044*Y33))/6.25*1000)*C42/1000 -> 0 | U33: =(5.35*D42)*C42/1000 -> 0 | V33: =(-0.00345*D42^2+2.53338*D42)*C42/1000 -> 0 | W33: =(1.006*D42)*C42/1000000 -> 0 | X33: =21.8*D42*C42/1000000 -> 0 | Y33: =IF(E33<>0,E33,Y35) -> 60.8
B34: Jeunes Reproducteurs4 | F34: =C34*D34 -> 0 | L34: Jeunes Reproducteurs4 | M34: =D34*C34 -> 0 | N34: =((EXP(-0.9559-0.0145*Y34)*(0.96*D34)^(0.7417+0.0044*Y34))/6.25*1000)*C34/1000 -> 0 | O34: =5.35*F34/1000 -> 0 | P34: =(-0.00345*D34^2+2.53338*D34)*C34/1000 -> 0 | Q34: =(1.006*D34)*C34/1000000 -> 0 | R34: =21.8*D34*C34/1000000 -> 0 | S34: =C43*D43 -> 11000 | T34: =((EXP(-0.9559-0.0145*Y34)*(0.96*D43)^(0.7417+0.0044*Y34))/6.25*1000)*C43/1000 -> 280.8186658 | U34: =(5.35*D43)*C43/1000 -> 58.85 | V34: =(-0.00345*D43^2+2.53338*D43)*C43/1000 -> 23.69268 | W34: =(1.006*D43)*C43/1000000 -> 0.011066 | X34: =21.8*D43*C43/1000000 -> 0.2398 | Y34: =IF(E34<>0,E34,Y35) -> 60.8
B35: Porcs charcutiers | C35: =C23*28.5*0.975*0.97 -> 4851.6975 | D35: 118 | E35: 60.8 | F35: =C35*D35 -> 572500.305 | L35: Porcs charcutiers | M35: =D35*C35 -> 572500.305 | N35: =((EXP(-0.9559-0.0145*Y35)*(0.96*D35)^(0.7417+0.0044*Y35))/6.25*1000)*C35/1000 -> 14624.80622 | O35: =5.35*F35/1000 -> 3062.876632 | P35: =(-0.00345*D35^2+2.53338*D35)*C35/1000 -> 1217.295949 | Q35: =(1.006*D35)*C35/1000000 -> 0.5759353068 | R35: =21.8*D35*C35/1000000 -> 12.48050665 | S35: - | T35: - | U35: - | V35: - | W35: - | X35: - | Y35: =IF(E35<>0,E35,60) -> 60.8
B36: Truies de réforme | C36: 100 | D36: 240 | F36: =C36*D36 -> 24000 | L36: Truies de réforme | M36: =D36*C36 -> 24000 | N36: =((EXP(-0.9559-0.0145*Y36)*(0.96*D36)^(0.7417+0.0044*Y36))/6.25*1000)*C36/1000 -> 617.1183145 | O36: =5.35*F36/1000 -> 128.4 | P36: =(-0.00345*D36^2+2.53338*D36)*C36/1000 -> 40.92912 | Q36: =(1.006*D36)*C36/1000000 -> 0.024144 | R36: =21.8*D36*C36/1000000 -> 0.5232 | S36: - | T36: - | U36: - | V36: - | W36: - | X36: - | Y36: =IF(E35<>0,E35,60) -> 60.8
B37: Équarissage et saisies | F37: 13854 | L37: Équarissage et saisies | M37: =F37 -> 13854 | N37: =M37*0.16/6.25 -> 354.6624 | O37: =5.35*M37/1000 -> 74.1189 | P37: =(-0.00345*50^2+2.53338*50)*(M37/50)/1000 -> 32.70763152 | Q37: =(1.006*50)*(F37/50)/1000000 -> 0.013937124 | R37: =21.8*50*(F37/50)/1000000 -> 0.3020172 | S37: - | T37: - | U37: - | V37: - | W37: - | X37: - | Y37: =IF(E35<>0,E35,60) -> 60.8
L38: Total | M38: =SUM(M32:M37) -> 610354.305 | N38: 15596.58694 | O38: 3265.395532 | P38: 1290.9327 | Q38: 0.6140164308 | R38: 13.30572385 | S38: =SUM(S32:S34) -> 11000 | T38: 280.8186658 | U38: 58.85 | V38: 23.69268 | W38: 0.011066 | X38: 0.2398
B39: ACHATS D'ANIMAUX | C39: Nombre | D39: Poids vif
D40: kg
B41: Porcelets sevrés
B42: Porcelets "de 25-35 kg" | J42: =J43 -> 1
B43: Cochettes et verrats | C43: 100 | D43: 110 | J43: 1
J44: =J43 -> 1
B45: 1Entre la première IA fécondante et la réforme | K45: =J43 -> 1 | M45: Bâtiment | N45: Reste
B46: 2Cochettes jusque la première IA fécondante | K46: 1 | L46: Pas de litière | M46: 24 | N46: 7
B47: 3Teneur en maigre des pièces. Dans le cas d'une vente en vif donner la teneur prévisible du TMP vers 115 kg | K47: 2 | L47: LITIERE (paille) | M47: 57 | N47: 0
B48: 4Dans le cas d'élevages de sélection ou de multiplication | J48: =J49 -> 1 | K48: 3 | L48: LITIERE (paille) compostée | M48: 57 | N48: 30
J49: 1 | K49: 4 | L49: LITIERE (sciure) accumulée | M49: 72 | N49: 0
J50: =J49 -> 1 | K50: 5 | L50: LITIERE (sciure) accumulée compostée | M50: 72 | N50: 10
K51: =J49 -> 1
K52: 1 | L52: Pas de raclage en V
K53: 2 | L53: Raclage en V sans compostage | M53: 14.5 | N53: 7
K54: 3 | L54: Raclage en V avec compostage | M54: 14.5 | N54: =(0.3*0.568+0.07*(1-0.568))*100 -> 20.064
K56: =sel_mode -> 1 | L56: =VLOOKUP(Elevage!K45,mode,2) -> Pas de litière | M56: =VLOOKUP(Elevage!K45,mode,3) -> 24 | N56: =VLOOKUP(Elevage!K45,mode,4) -> 7
K57: =K51 -> 1 | L57: =VLOOKUP(Elevage!$K$51,mode_rac,2) -> Pas de raclage en V | M57: =VLOOKUP(Elevage!$K$51,mode_rac,3) -> 0 | N57: =VLOOKUP(Elevage!$K$51,mode_rac,4) -> 0 | AY57: Calcul excrétion IED | BC57: Ingestion
O59: N_Exc | P59: rep_N | Q59: % _Lit | R59: %_Racl | S59: %_Lisier | T59: Nlisier | U59: Nlitière | V59: Nraclage | W59: Nraclage_S | X59: NRaclage_L | Y59: P-Exc | Z59: rep_P | AA59: Plisier | AB59: Plitière | AC59: Praclage | AD59: Praclage_S | AE59: PRaclage_L | AF59: K-Exc | AG59: Klisier | AH59: Klitière | AI59: Kraclage | AJ59: Kraclage_S | AK59: KRaclage_L | AL59: Cu_Exc | AM59: CuKlisier | AN59: Culitière | AO59: Curaclage | AP59: Curaclage_S | AQ59: CuRaclage_L | AR59: Zn_Exc | AS59: ZnKlisier | AT59: Znlitière | AU59: Znraclage | AV59: Znraclage_S | AW59: ZnRaclage_L | AY59: N_IED_Bip | AZ59: P2O5-IED_Bip | BA59: N_IED | BB59: P2O5_IED | BC59: N_Ing_Biph | BD59: P_Ing_Biph | BE59: Alim_Ing_Bip | BF59: Alim_Ing_IED
L60: Reproducteurs | M60: =(M$46*$S60+M$56*$Q60+M$57*$R60)/100 -> 24 | N60: =(N$46*$S60+N$56*$Q60+N$57*$R60)/100 -> 7 | O60: =Standard!C19*Standard!Y19/0.93/0.76 -> 3695.104697 | P60: =+O60/$O$64 -> 0.1511901322 | Q60: =IF(sel_mode=1,0,IF(((C23+D23)/2+(C25+D25)/2)>0,(G23*(C23+D23)/2+G25*(C25+D25)/2)/((C23+D23)/2+(C25+D25)/2)*0.7,0)) -> 0 | R60: 0 | S60: =100-pclt-R60 -> 100 | T60: =($O60*(100-$M$46)*(100-$N$46)/100/100)*(S60)/100 -> 2611.7 | U60: =($O60*(100-$M$56)*(100-$N$56)/100/100)*(pclt)/100 -> 0 | V60: 0 | Y60: =Standard!C19*4.8 -> 873.6 | Z60: =Y60/$Y$64 -> 0.1961762176 | AA60: =S60*Y60/100 -> 873.6 | AB60: =pclt*Y60/100 -> 0 | AF60: =Standard!C19*7.73 -> 1406.86 | AG60: =S60*AF60/100 -> 1406.86 | AH60: =pclt*AF60/100 -> 0 | AL60: =Standard!C19*29.7 -> 5405.4 | AM60: =S60*AL60/100 -> 5405.4 | AN60: =pclt*AL60/100 -> 0 | AR60: =Standard!C19*173 -> 31486 | AS60: =S60*AR60/100 -> 31486 | AT60: =pclt*AR60/100 -> 0 | AY60: =IF(O60<>0,O60/Standard!C19*Standard!M19,0) -> 3695.104697 | AZ60: =IF(Y60<>0,Y60/Standard!C28*Standard!M28*2.291367,0) -> 2001.738211 | BA60: =AY60/$AY$64*$BA$64 -> 3440.034286 | BB60: =AZ60/$AZ$64*$BB$64 -> 1818.19294 | BC60: =AY60/0.721 -> 5124.971841 | BD60: =AZ60/0.7468117/2.291367 -> 1169.772782 | BE60: =BC60/(0.144/6.25) -> 222438.0139
L61: Jeunes truies | M61: =(M$46*$S61+M$56*$Q61+M$57*$R61)/100 -> 24 | N61: =(N$46*$S61+N$56*$Q61+N$57*$R61)/100 -> 7 | O61: =Standard!C20*Standard!Y20/0.93/0.76 -> 220.713073 | P61: =+O61/$O$64 -> 0.009030769468 | Q61: =IF(sel_mode=1,0,G24) -> 0 | R61: 0 | S61: =100-pcljr-R61 -> 100 | T61: =($O61*(100-$M$46)*(100-$N$46)/100/100)*(S61)/100 -> 156 | U61: =($O61*(100-$M$56)*(100-$N$56)/100/100)*(pcljr)/100 -> 0 | Y61: =Standard!C20*0.63*3 -> 37.8 | Z61: =Y61/$Y$64 -> 0.008488394033 | AA61: =S61*Y61/100 -> 37.8 | AB61: =pcljr*Y61/100 -> 0 | AF61: =Standard!C20*1.32*3 -> 79.2 | AG61: =S61*AF61/100 -> 79.2 | AH61: =pcljr*AF61/100 -> 0 | AL61: =Standard!C20*5.9*3 -> 354 | AM61: =S61*AL61/100 -> 354 | AN61: =pcljr*AL61/100 -> 0 | AR61: =Standard!C20*34.1*3 -> 2046 | AS61: =S61*AR61/100 -> 2046 | AT61: =pcljr*AR61/100 -> 0 | AY61: =IF(O61<>0,O61/Standard!C20*Standard!M20,0) -> 220.713073 | AZ61: =IF(Y61<>0,Y61/Standard!C29*Standard!M29*2.291367,0) -> 86.6136726 | BA61: =AY61/$AY$64*$BA$64 -> 205.4774088 | BB61: =AZ61/$AZ$64*$BB$64 -> 78.6718099 | BC61: =AY61/0.62273 -> 354.4282 | BD61: =AZ61/0.576767/2.291367 -> 65.53773014 | BE61: =BC61/(0.155/6.25) -> 14291.45968
L62: Porcelets produits | M62: =(M$46*$S62+M$56*$Q62+M$57*$R62)/100 -> 24 | N62: 7 | O62: =Standard!C21*Standard!Y21/0.93/0.76 -> 2677.082661 | P62: =+O62/$O$64 -> 0.1095364041 | Q62: =IF(sel_mode=1,0,G26) -> 0 | R62: 0 | S62: =100-pclp-R62 -> 100 | T62: =($O62*(100-$M$46)*(100-$N$46)/100/100)*(S62)/100 -> 1892.162025 | U62: =($O62*(100-$M$56)*(100-$N$56)/100/100)*(pclp)/100 -> 0 | V62: 0 | Y62: =Standard!C21*0.1 -> 485.16975 | Z62: =Y62/$Y$64 -> 0.1089500532 | AA62: =S62*Y62/100 -> 485.16975 | AB62: =pclp*Y62/100 -> 0 | AF62: =Standard!C21*0.26 -> 1261.44135 | AG62: =S62*AF62/100 -> 1261.44135 | AH62: =pclp*AF62/100 -> 0 | AL62: =Standard!C21*6.6 -> 32021.2035 | AM62: =S62*AL62/100 -> 32021.2035 | AN62: =pclp*AL62/100 -> 0 | AR62: =Standard!C21*5.3 -> 25713.99675 | AS62: =S62*AR62/100 -> 25713.99675 | AT62: =pclp*AR62/100 -> 0 | AY62: =IF(O62<>0,O62/Standard!C21*Standard!M21,0) -> 2677.082661 | AZ62: =IF(Y62<>0,Y62/Standard!C30*Standard!M30*2.291367,0) -> 1111.701955 | BA62: 2492.285577 | BB62: 1009.766729 | BC62: =AY62/0.48668 -> 5500.704079 | BD62: =AZ62/0.44981/2.291367 -> 1078.610413 | BE62: =BC62/(0.1826/6.25) -> 188277.1111
L63: Porcs à l'engrais produits | M63: 24 | N63: 7 | O63: =Standard!C22*(Standard!Y22+($D$35-118)*Standard!Y23)/0.93/0.76 -> 17847.21774 | P63: =+O63/$O$64 -> 0.7302426942 | Q63: =IF(sel_mode=1,0,G27) -> 0 | R63: =IF(K51=1,0,H27) -> 0 | S63: =100-pcle-R63 -> 100 | T63: =($O63*(100-$M$46)*(100-$N$46)/100/100)*(S63)/100 -> 12614.4135 | U63: =($O63*(100-$M$56)*(100-$N$56)/100/100)*(pcle)/100 -> 0 | V63: =(((O63*(100-M57)/100*(100-N57)/100))*(R63/100)) -> 0 | W63: =IF(K57=2,V63*0.568,V63*0.498) -> 0 | X63: =V63-W63 -> 0 | Y63: =Standard!C22*(0.63+($D$35-118)*0.007) -> 3056.569425 | Z63: 0.6863853351 | AA63: =S63*Y63/100 -> 3056.569425 | AB63: =pcle*Y63/100 -> 0 | AC63: =pcve*Y63/100 -> 0 | AD63: =AC63*0.882 -> 0 | AE63: =AC63-AD63 -> 0 | AF63: =Standard!C22*(1.32+(D35-118)*0.015) -> 6404.2407 | AG63: =S63*AF63/100 -> 6404.2407 | AH63: =pcle*AF63/100 -> 0 | AI63: =pcve*AF63/100 -> 0 | AJ63: =AI63*0.469 -> 0 | AK63: =AI63-AJ63 -> 0 | AL63: =Standard!C22*(5.9+($D$35-118)*0.392) -> 28625.01525 | AM63: =S63*AL63/100 -> 28625.01525 | AN63: =pcle*AL63/100 -> 0 | AO63: =pcve*AL63/100 -> 0 | AP63: =AO63*0.919 -> 0 | AQ63: =AO63-AP63 -> 0 | AR63: =Standard!C22*(34.1+($D$35-118)*0.068) -> 165442.8848 | AS63: =S63*AR63/100 -> 165442.8848 | AT63: =pcle*AR63/100 -> 0 | AU63: =pcve*AR63/100 -> 0 | AV63: =AU63*0.925 -> 0 | AW63: =AU63-AV63 -> 0 | AY63: =IF(O63<>0,O63/Standard!C22*Standard!M22,0) -> 17847.21774 | AZ63: =IF(Y63<>0,Y63/Standard!C31*Standard!M31*2.291367,0) -> 7003.722314 | BA63: 16615.23718 | BB63: 6361.53039 | BC63: =AY63/0.62273 -> 28659.6402 | BD63: =AZ63/0.576767/2.291367 -> 5299.487358 | BE63: =BC63/(0.154/6.25) -> 1163134.748
L64: TOTAL | M64: =SUM(M60:M63*P60:P63) -> 24 | N64: =SUM(N60:N63*P60:P63) -> 7 | O64: =SUM(O60:O63) -> 24440.11817 | P64: =SUM(P60:P63) -> 1 | Q64: =SUM(P60:P63*Q60:Q63) -> 0 | R64: =SUM(P60:P63*R60:R63) -> 0 | S64: =SUM(P60:P63*S60:S63) -> 100 | T64: =SUM(T60:T63) -> 17274.27553 | U64: =SUM(U60:U63) -> 0 | V64: =SUM(V60:V63) -> 0 | W64: =SUM(W60:W63) -> 0 | X64: 0 | Y64: =SUM(Y60:Y63) -> 4453.139175 | Z64: =SUM(Z60:Z63) -> 1 | AA64: =SUM(AA60:AA63) -> 4453.139175 | AB64: =SUM(AB60:AB63) -> 0 | AC64: 0 | AD64: 0 | AE64: 0 | AF64: =SUM(AF60:AF63) -> 9151.74205 | AG64: =SUM(AG60:AG63) -> 9151.74205 | AH64: =SUM(AH60:AH63) -> 0 | AI64: =SUM(AI60:AI63) -> 0 | AJ64: =SUM(AJ60:AJ63) -> 0 | AK64: =SUM(AK60:AK63) -> 0 | AL64: =SUM(AL60:AL63) -> 66405.61875 | AM64: =SUM(AM60:AM63) -> 66405.61875 | AN64: =SUM(AN60:AN63) -> 0 | AO64: =SUM(AO60:AO63) -> 0 | AP64: =SUM(AP60:AP63) -> 0 | AQ64: =SUM(AQ60:AQ63) -> 0 | AR64: =SUM(AR60:AR63) -> 224688.8815 | AS64: =SUM(AS60:AS63) -> 224688.8815 | AT64: =SUM(AT60:AT63) -> 0 | AU64: =SUM(AU60:AU63) -> 0 | AV64: =SUM(AV60:AV63) -> 0 | AW64: =SUM(AW60:AW63) -> 0 | AY64: =SUM(AY60:AY63) -> 24440.11817 | AZ64: =SUM(AZ60:AZ63) -> 10203.77615 | BA64: ='Bilan Simplifié'!C28 -> 22753.03445 | BB64: ='Bilan Simplifié'!E28 -> 9268.161868 | BC64: =SUM(BC60:BC63) -> 39639.74432 | BD64: =SUM(BD60:BD63) -> 7613.408283 | BE64: =SUM(BE60:BE63) -> 1588141.333 | BF64: ='Bilan Simplifié'!G42 -> 1561151.553
N65: =(1-(T64+U64+V64)/O64)*100 -> 29.32 | T65: =T64/SUM($T$64:$V$64) -> 1 | U65: =U64/SUM($T$64:$V$64) -> 0 | V65: 0 | W65: 0 | X65: 0 | AA65: =AA64/SUM($AA$64:$AC$64) -> 1 | AB65: =AB64/SUM($AA$64:$AC$64) -> 0 | AC65: 0 | AD65: =AD64/SUM($AA$64:$AC$64) -> 0 | AE65: 0 | AG65: =AG64/SUM($AG$64:$AI$64) -> 1 | AH65: =AH64/SUM($AG$64:$AI$64) -> 0 | AI65: 0 | AJ65: 0 | AK65: 0 | AM65: =AM64/SUM($AM$64:$AO$64) -> 1 | AN65: =AN64/SUM($AM$64:$AO$64) -> 0 | AO65: 0 | AP65: 0 | AQ65: 0 | AS65: =AS64/SUM($AS$64:$AU$64) -> 1 | AT65: =AT64/SUM($AS$64:$AU$64) -> 0 | AU65: 0 | AV65: 0 | AW65: 0 | BA65: =BA64/AY64 -> 0.9309707214 | BB65: =BB64/AZ64 -> 0.9083070552 | BF65: =BF64/BE64 -> 0.9830054295
L66: =CONCATENATE(L68,L69,L70," (en % de N excrété)") -> 100% LISIER (en % de N excrété) | X66: =SUM(U65,W65:X65) -> 0 | AD66: =SUM(AB65,AD65:AE65) -> 0 | AJ66: =SUM(AH65,AJ65:AK65) -> 0 | AP66: =SUM(AN65,AP65:AQ65) -> 0 | AV66: =SUM(AT65,AV65:AW65) -> 0
L68: =IF(Q64>0,CONCATENATE(FIXED(Q64,0),"% ",L56,"; "),"") -> 
L69: =IF(R64>0,CONCATENATE(FIXED(R64,0),"% ",L57,"; "),"") -> 
L70: =IF(S64>0,CONCATENATE(FIXED(S64,0),"% ","LISIER"),"") -> 100% LISIER

Sheet Aliments
D2: =IF(Elevage!C2<>0,Elevage!C2,"") -> 
C3: Références | D3: =IF(Elevage!C3<>0,Elevage!C3,"") -> EARL Pemoc'h Gouez
C4: de l'élevage | D4: =IF(Elevage!C4<>0,Elevage!C4,"") -> 200 truies naisseur-engraisseur
D5: =IF(Elevage!C5<>0,Elevage!C5,"") ->  | P5: 2
C7: ALIMENTS | D7: =Elevage!M9 -> 2017-01-01 | E7: au | F7: =Elevage!M10 -> 2017-12-31
C8: Aliment complets
C9: Matières premières | D9: Quantité | E9: Protéines | F9: Phosphore | G9: Potassium | H9: Cuivre | I9: Zinc | J9: Azote | K9: Phosphore | L9: Potassium | M9: Cuivre | N9: Zinc
C10: Complémentaires | D10: kg | E10: % | F10: total, % | G10: % | H10: ppm | I10: ppm | J10: kg | K10: P, kg | L10: K, kg | M10: Cu, g | N10: Zn, g
C11: Type d'aliment | D11: =SUM(D12:D41) -> 1561151.553 | E11: =IF(D11<>0,J11*6.25/D11*100,"") -> 15.24067388 | F11: =IF($D$11<>0,K11/$D$11*100,"") -> 0.4644880738 | G11: =IF($D$11<>0,L11/$D$11*100,"") -> 0.6551977889 | H11: =IF($D$11<>0,M11/$D$11*1000,"") -> 46.61164377 | I11: =IF($D$11<>0,N11/$D$11*1000,"") -> 85.19792982 | J11: =SUM(J12:J71) -> 38068.80272 | K11: =SUM(K12:K71) -> 7251.362779 | L11: =SUM(L12:L71) -> 10228.63046 | M11: =SUM(M12:M71) -> 72767.84008 | N11: =SUM(N12:N71) -> 133006.8805
B12: 1 | C12: Truies lactation | D12: =(Elevage!C23+Elevage!D23)/2*1225*0.26 -> 57330 | E12: 16 | F12: 0.58 | G12: 0.7 | H12: 30 | I12: 100 | J12: =IF(D12<>0,+E12/100*D12/6.25,"") -> 1467.648 | K12: =IF(D12<>0,+F12/100*D12,"") -> 332.514 | L12: =IF(D12<>0,+G12/100*D12,"") -> 401.31 | M12: =IF(D12<>0,+H12/1000*D12,"") -> 1719.9 | N12: =IF(D12<>0,+I12/1000*D12,"") -> 5733
B13: =+B12+1 -> 2 | C13: Truies gestation | D13: =(Elevage!C23+Elevage!D23)/2*1225*0.74 -> 163170 | E13: 14 | F13: 0.52 | G13: 0.7 | H13: 30 | I13: 100 | J13: =IF(D13<>0,+E13/100*D13/6.25,"") -> 3655.008 | K13: =IF(D13<>0,+F13/100*D13,"") -> 848.484 | L13: =IF(D13<>0,+G13/100*D13,"") -> 1142.19 | M13: =IF(D13<>0,+H13/1000*D13,"") -> 4895.1 | N13: =IF(D13<>0,+I13/1000*D13,"") -> 16317
B14: 3 | C14: Post sevrage | D14: =Elevage!C35*1.66*(31-8) -> 185237.8105 | E14: 18.3 | F14: 0.575 | G14: 0.79 | H14: 170 | I14: 100 | J14: 5423.763093 | K14: 1065.117411 | L14: 1463.378703 | M14: 31490.42779 | N14: 18523.78105
B15: 4 | C15: Engraissement-Croissance | D15: =Elevage!C35*2.7*(Elevage!D35-31)*0.4 -> 455865.4971 | E15: 15.5 | F15: 0.45 | G15: 0.66 | H15: 30 | I15: 80 | J15: 11305.46433 | K15: 2051.394737 | L15: 3008.712281 | M15: 13675.96491 | N15: 36469.23977
B16: 5 | C16: Engraissement-Finition | D16: =Elevage!C35*2.7*(Elevage!D35-31)*0.6 -> 683798.2457 | E16: 14.5 | F16: 0.42 | G16: 0.6 | H16: 30 | I16: 80 | J16: 15864.1193 | K16: 2871.952632 | L16: 4102.789474 | M16: 20513.94737 | N16: 54703.85965
B17: 6 | C17: Jeunes truies | D17: =Elevage!C43*(155-Elevage!D43)*3.5 -> 15750 | E17: 14 | F17: 0.52 | G17: 0.7 | H17: 30 | I17: 80 | J17: 352.8 | K17: 81.9 | L17: 110.25 | M17: 472.5 | N17: 1260
B18: 7
B19: 8
B20: 9
B21: 10
B22: 11
B23: 12
B24: 13
B25: 14
B26: 15
B27: 16
B28: 17
B29: 18
B30: 19
B31: 20
B32: 21
B33: 22
B34: 23
B35: 24
B36: 25
B37: 26
B38: 27
B39: 28
B40: 29
B41: 30
B42: 31 | J42: =IF(D42<>0,+E42/100*D42/6.25,"") ->  | K42: =IF(E42<>0,+F42/100*D42,"") ->  | L42: =IF(F42<>0,+G42/100*D42,"") ->  | M42: =IF(G42<>0,+H42/1000*D42,"") ->  | N42: =IF(H42<>0,+I42/1000*D42,"") -> 
B43: 32 | J43: =IF(D43<>0,+E43/100*D43/6.25,"") ->  | K43: =IF(E43<>0,+F43/100*D43,"") ->  | L43: =IF(F43<>0,+G43/100*D43,"") ->  | M43: =IF(G43<>0,+H43/1000*D43,"") ->  | N43: =IF(H43<>0,+I43/1000*D43,"") -> 
B44: 33 | J44: =IF(D44<>0,+E44/100*D44/6.25,"") ->  | K44: =IF(E44<>0,+F44/100*D44,"") ->  | L44: =IF(F44<>0,+G44/100*D44,"") ->  | M44: =IF(G44<>0,+H44/1000*D44,"") ->  | N44: =IF(H44<>0,+I44/1000*D44,"") -> 
B45: =+B44+1 -> 34
B46: 35
B47: 36
B48: 37
B49: 38
B50: 39
B51: 40
B52: 41
B53: 42
B54: 43
B55: 44
B56: 45
B57: 46
B58: 47
B59: 48
B60: 49
B61: 50
B62: 51
B63: 52
B64: 53
B65: 54
B66: 55
B67: 56
B68: 57
B69: 58
B70: 59
B71: 60

Sheet Stock_Début (hidden)
D2: =IF(Elevage!C2<>0,Elevage!C2,"") -> 
C3: Références | D3: =IF(Elevage!C3<>0,Elevage!C3,"") -> EARL Pemoc'h Gouez
C4: de l'élevage | D4: =IF(Elevage!C4<>0,Elevage!C4,"") -> 200 truies naisseur-engraisseur
D5: =IF(Elevage!C5<>0,Elevage!C5,"") -> 
C7: ALIMENTS - STOCKS DEBUT | D7: =Elevage!M9 -> 2017-01-01
D9: Quantité | E9: Protéines | F9: Phosphore | G9: Potassium | H9: Cuivre | I9: Zinc | J9: Azote | K9: Phosphore | L9: Potassium | M9: Cuivre | N9: Zinc
D10: kg | E10: % | F10: % | G10: % | H10: ppm | I10: ppm | J10: kg | K10: P, kg | L10: K, kg | M10: Cu, g | N10: Zn, g
C11: Type d'aliment | D11: =SUM(D12:D41) -> 0 | E11: =IF(D11<>0,J11*6.25/D11*100,"") ->  | F11: =IF($D$11<>0,K11/$D$11*100,"") ->  | G11: =IF($D$11<>0,L11/$D$11*100,"") ->  | H11: =IF($D$11<>0,M11/$D$11*1000,"") ->  | I11: =IF($D$11<>0,N11/$D$11*1000,"") ->  | J11: =SUM(J12:J41) -> 0 | K11: =SUM(K12:K41) -> 0 | L11: =SUM(L12:L41) -> 0 | M11: =SUM(M12:M41) -> 0 | N11: =SUM(N12:N41) -> 0
B12: 1 | C12: Stock début | E12: =+Aliments!E11 -> 15.24067388 | F12: =+Aliments!F11 -> 0.4644880738 | G12: =+Aliments!G11 -> 0.6551977889 | H12: =+Aliments!H11 -> 46.61164377 | I12: =+Aliments!I11 -> 85.19792982 | J12: =IF(D12<>0,+E12/100*D12/6.25,"") ->  | K12: =IF(D12<>0,+F12/100*D12,"") ->  | L12: =IF(D12<>0,+G12/100*D12,"") ->  | M12: =IF(D12<>0,+H12/1000*D12,"") ->  | N12: =IF(D12<>0,+I12/1000*D12,"") -> 
B13: =+B12+1 -> 2 | J13: =IF(D13<>0,+E13/100*D13/6.25,"") ->  | K13: =IF(D13<>0,+F13/100*D13,"") ->  | L13: =IF(D13<>0,+G13/100*D13,"") ->  | M13: =IF(D13<>0,+H13/1000*D13,"") ->  | N13: =IF(D13<>0,+I13/1000*D13,"") -> 
B14: 3
B15: 4
B16: 5
B17: 6
B18: 7
B19: 8
B20: 9
B21: 10
B22: 11
B23: 12
B24: 13
B25: 14
B26: 15
B27: 16
B28: 17
B29: 18
B30: 19
B31: 20
B32: 21
B33: 22
B34: 23
B35: 24
B36: 25
B37: 26
B38: 27
B39: 28
B40: 29
B41: 30 | J41: =IF(D41<>0,+E41/100*D41/6.25,"") ->  | K41: =IF(D41<>0,+F41/100*D41,"") ->  | L41: =IF(D41<>0,+G41/100*D41,"") ->  | M41: =IF(D41<>0,+H41/1000*D41,"") ->  | N41: =IF(D41<>0,+I41/1000*D41,"") -> 

Sheet Stock_Fin (hidden)
D2: =IF(Elevage!C2<>0,Elevage!C2,"") -> 
C3: Références | D3: =IF(Elevage!C3<>0,Elevage!C3,"") -> EARL Pemoc'h Gouez
C4: de l'élevage | D4: =IF(Elevage!C4<>0,Elevage!C4,"") -> 200 truies naisseur-engraisseur
D5: =IF(Elevage!C5<>0,Elevage!C5,"") -> 
C7: ALIMENTS - STOCKS FIN | D7: =Elevage!M10 -> 2017-12-31
D9: Quantité | E9: Protéines | F9: Phosphore | G9: Potassium | H9: Cuivre | I9: Zinc | J9: Azote | K9: Phosphore | L9: Potassium | M9: Cuivre | N9: Zinc
D10: kg | E10: % | F10: % | G10: % | H10: ppm | I10: ppm | J10: kg | K10: P, kg | L10: K, kg | M10: Cu, g | N10: Zn, g
C11: Type d'aliment | D11: =SUM(D12:D41) -> 0 | E11: =IF(D11<>0,J11*6.25/D11*100,"") ->  | F11: =IF($D$11<>0,K11/$D$11*100,"") ->  | G11: =IF($D$11<>0,L11/$D$11*100,"") ->  | H11: =IF($D$11<>0,M11/$D$11*1000,"") ->  | I11: =IF($D$11<>0,N11/$D$11*1000,"") ->  | J11: =SUM(J12:J41) -> 0 | K11: =SUM(K12:K41) -> 0 | L11: =SUM(L12:L41) -> 0 | M11: =SUM(M12:M41) -> 0 | N11: =SUM(N12:N41) -> 0
B12: 1 | C12: Stock fin | E12: =Aliments!E11 -> 15.24067388 | F12: =+Aliments!F11 -> 0.4644880738 | G12: =+Aliments!G11 -> 0.6551977889 | H12: =+Aliments!H11 -> 46.61164377 | I12: =+Aliments!I11 -> 85.19792982 | J12: =IF(D12<>0,+E12/100*D12/6.25,"") ->  | K12: =IF(D12<>0,+F12/100*D12,"") ->  | L12: =IF(D12<>0,+G12/100*D12,"") ->  | M12: =IF(D12<>0,+H12/1000*D12,"") ->  | N12: =IF(D12<>0,+I12/1000*D12,"") -> 
B13: =+B12+1 -> 2 | J13: =IF(D13<>0,+E13/100*D13/6.25,"") ->  | K13: =IF(D13<>0,+F13/100*D13,"") ->  | L13: =IF(D13<>0,+G13/100*D13,"") ->  | M13: =IF(D13<>0,+H13/1000*D13,"") ->  | N13: =IF(D13<>0,+I13/1000*D13,"") -> 
B14: 3
B15: 4
B16: 5
B17: 6
B18: 7
B19: 8
B20: 9
B21: 10
B22: 11
B23: 12
B24: 13
B25: 14
B26: 15
B27: 16
B28: 17
B29: 18
B30: 19
B31: 20
B32: 21
B33: 22
B34: 23
B35: 24
B36: 25
B37: 26
B38: 27
B39: 28
B40: 29
B41: 30

Sheet Litières (hidden)
D2: =IF(Elevage!C2<>0,Elevage!C2,"") -> 
C3: Références | D3: =IF(Elevage!C3<>0,Elevage!C3,"") -> EARL Pemoc'h Gouez
C4: de l'élevage | D4: =IF(Elevage!C4<>0,Elevage!C4,"") -> 200 truies naisseur-engraisseur
D5: =IF(Elevage!C5<>0,Elevage!C5,"") -> 
C7: Litière Utilisée | D7: =Elevage!M9 -> 2017-01-01 | F7: au | G7: =Elevage!M10 -> 2017-12-31
D9: Quantité | E9: MS | F9: N Total | G9: Phosphore | H9: Potassium | I9: Cuivre | J9: Zinc | K9: MS | L9: Azote | M9: Phosphore | N9: Potassium | O9: Cuivre | P9: Zinc
D10: kg | E10: % | F10: % | G10: % | H10: % | I10: ppm | J10: ppm | K10: kg | L10: kg | M10: P, kg | N10: K, kg | O10: Cu, g | P10: Zn, g
C11: Type de litière | D11: =SUM(D12:D41) -> 0 | E11: =IF(D11<>0,K11/D11*100,"") ->  | F11: =IF(D11<>0,L11*6.25/D11*100,"") ->  | G11: =IF($D$11<>0,M11/$D$11*100,"") ->  | H11: =IF($D$11<>0,N11/$D$11*100,"") ->  | I11: =IF($D$11<>0,O11/$D$11*1000,"") ->  | J11: =IF($D$11<>0,P11/$D$11*1000,"") ->  | K11: =SUM(K12:K41) -> 0 | L11: 0 | M11: 0 | N11: 0 | O11: 0 | P11: 0
B12: 1 | C12: Paille | E12: 88 | F12: 0.5 | G12: 0.08 | H12: 0.94 | I12: 0 | J12: 0 | K12: =IF(E12<>0,+E12/100*D12,"") -> 0 | L12: =IF(E12<>0,+F12/100*D12,"") -> 0 | M12: =IF(E12<>0,+G12/100*D12,"") -> 0 | N12: =IF(E12<>0,+H12/100*D12,"") -> 0 | O12: =IF(E12<>0,+I12/1000*D12,"") -> 0 | P12: =IF(E12<>0,+J12/1000*D12,"") -> 0
B13: =+B12+1 -> 2 | C13: Sciure | E13: 88 | F13: 0.2 | G13: =0.01*0.88 -> 0.0088 | H13: =0.022*0.88 -> 0.01936 | I13: 0 | J13: 0 | K13: =IF(E13<>0,+E13/100*D13,"") -> 0 | L13: =IF(E13<>0,+F13/100*D13,"") -> 0 | M13: =IF(E13<>0,+G13/100*D13,"") -> 0 | N13: =IF(E13<>0,+H13/100*D13,"") -> 0 | O13: =IF(E13<>0,+I13/1000*D13,"") -> 0 | P13: =IF(E13<>0,+J13/1000*D13,"") -> 0
B14: 3 | L14: =IF(E14<>0,+F14/100*D14,"") -> 
B15: 4
B16: 5
B17: 6
B18: 7
B19: 8
B20: 9
B21: 10
B22: 11
B23: 12
B24: 13
B25: 14
B26: 15
B27: 16
B28: 17
B29: 18
B30: 19
B31: 20
B32: 21
B33: 22
B34: 23
B35: 24
B36: 25
B37: 26
B38: 27
B39: 28
B40: 29
B41: 30

Sheet Récapitulatif
E2: Bilan Réel Simplifié "Porc"
E5: D'après le document du RMT Elevage&Environnement
E7: Evaluation des rejets d’azote - phosphore -
E8: potassium - cuivre et zinc des porcs.
E9: Influence de l'alimentation, du mode de logement
E10: et de la gestation des effluents (2016)
E15: Élevage
E16: =IF(Elevage!$C$2<>0,Elevage!$C$2,"") -> 
E17: =IF(Elevage!$C$3<>0,Elevage!$C$3,"") -> EARL Pemoc'h Gouez
E18: =IF(Elevage!C4<>0,Elevage!C4,"") -> 200 truies naisseur-engraisseur
E19: =IF(Elevage!C5<>0,Elevage!C5,"") -> 
C20: du | D20: =Aliments!D7 -> 2017-01-01 | E20: au | F20: =Aliments!F7 -> 2017-12-31
E24: Effluent épandable
C26: Azote | F26: ='Bilan Simplifié'!C30 -> 16081.84475 | G26: kg
C27: Phosphore (P2O5) | F27: ='Bilan Simplifié'!E30 -> 9268.161868 | G27: kg
C28: Potassium (K2O) | F28: ='Bilan Simplifié'!G30 -> 10753.66853 | G28: kg
E33: L'utilisation de cet outil ou de ses résultats est faite sous l'entière responsabilité
E34: de l'utilisateur et ne saurait engager celle de l'INRA ou du RMT

Sheet Excrétion
F2: Excrétion de N et P2O5
F4: Élevage
F5: =IF(Elevage!$C$3<>0,Elevage!$C$3,"") -> EARL Pemoc'h Gouez
F6: =IF(Elevage!C4<>0,Elevage!C4,"") -> 200 truies naisseur-engraisseur
D7: du | E7: =Aliments!D7 -> 2017-01-01 | F7: au | G7: =Aliments!F7 -> 2017-12-31
F10: Nombre de places
D12: Truies | G12: 210
D13: dont maternité | G13: 44
D14: dont gestation | G14: =IF(G12>0,G12-G13,"") -> 166
D15: Porcelets post-sevrage | G15: 850
D16: Porcs à l'engrais et jeunes truies | G16: 1650
F19: Azote excrété, kg
F20: Total | G20: % | H20: Par place | M20: NEffectif | N20: Exc/Animal
D21: Truies | F21: =Elevage!BA60 -> 3440.034286 | G21: =F21/$F$27 -> 0.1511901322 | H21: =IF(G12>0,F21/G12,"-") -> 16.38111565 | M21: =Standard!M19 -> 182 | N21: =F21/M21 -> 18.90128728
D22: =D13 -> dont maternité | F22: =F21*0.28 -> 963.2096 | G22: =F22/$F$27 -> 0.04233323701 | H22: =IF(G13>0,F22/G13,"-") -> 21.89112727
D23: =D14 -> dont gestation | F23: =F21-F22 -> 2476.824686 | G23: =F23/$F$27 -> 0.1088568952 | H23: =IF(G14<>"",IF(G14>0,F23/G14,"-"),"-") -> 14.92063064
D24: Porcelets PS | F24: =Elevage!BA62 -> 2492.285577 | G24: =F24/$F$27 -> 0.1095364041 | H24: 2.932100678 | M24: =Standard!M21 -> 4851.6975 | N24: =F24/M24 -> 0.513693522
D25: Porcs à l'engrais
D26: et jeunes truies | F26: =Elevage!BA63+Elevage!BA61 -> 16820.71459 | G26: =F26/$F$27 -> 0.7392734637 | H26: =IF(G16<>0,F26/G16,"-") -> 10.19437248 | M26: =Standard!M22+Standard!M20*Standard!A69 -> 4851.6975 | N26: =F26/M26 -> 3.466975133
D27: Total élevage | F27: =F21+F24+F26 -> 22753.03445 | G27: =G21+G24+G26 -> 1
F30: Phosphore excrété, kg P2O5
F31: Total | G31: % | H31: Par place
D32: =D21 -> Truies | F32: =Elevage!BB60 -> 1818.19294 | G32: =F32/$F$38 -> 0.1961762176 | H32: =IF(G12<>0,F32/G12,"") -> 8.658061618
D33: =D22 -> dont maternité | F33: =F32*0.28 -> 509.0940232 | G33: =F33/$F$38 -> 0.05492934094 | H33: =IF(G13<>0,F33/G13,"") -> 11.57031871
D34: dont gestation | F34: =F32-F33 -> 1309.098917 | G34: =F34/$F$38 -> 0.1412468767 | H34: =IF(G14<>"",IF(G14<>0,F34/G14,""),"-") -> 7.886138052
D35: Porcelets PS | F35: =Elevage!BB62 -> 1009.766729 | G35: =F35/$F$38 -> 0.1089500532 | H35: 1.187960857
D36: Porcs à l'engrais
D37: et jeunes truies | F37: =Elevage!BB63+Elevage!BB61 -> 6440.2022 | G37: =F37/$F$38 -> 0.6948737292 | H37: =IF(G16<>0,F37/G16,"") -> 3.903152848
D38: Total élevage | F38: =F32+F36+F37+F35 -> 9268.161868 | G38: =G32+G35+G36+G37 -> 1
F40: L'utilisation de cet outil ou de ses résultats est faite sous l'entière responsabilité
F41: de l'utilisateur et ne saurait engager celle de l'INRA ou du RMT

Sheet Bilan Simplifié
C2: =IF(Elevage!C2<>0,Elevage!C2,"") -> 
B3: Références | C3: =IF(Elevage!C3<>0,Elevage!C3,"") -> EARL Pemoc'h Gouez
B4: de l'élevage | C4: =IF(Elevage!C4<>0,Elevage!C4,"") -> 200 truies naisseur-engraisseur
C5: =IF(Elevage!C5<>0,Elevage!C5,"") -> 
B7: Effluent | C7: =+Elevage!L66 -> 100% LISIER (en % de N excrété)
B10: ELEVAGE | E10: LITIERE
G11: kg brut | H11: kg MS | I11: %MS
B12: Début de période | C12: =Elevage!M9 -> 2017-01-01 | E12: Quantité totale utilisée | G12: =+Litières!D11 -> 0 | H12: =IF(G12<>0,+G12*I12/100,"") ->  | I12: =+Litières!E11 -> 
B13: Fin de période | C13: =Elevage!M10 -> 2017-12-31
B14: Durée | C14: =+C13-C12+1 -> 365 | E14: EMANATIONS GAZEUSES, % N excrété
B15: Truies en production | C15: =(Elevage!C23+Elevage!D23)/2 -> 180
B16: Verrats | C16: =(Elevage!C25+Elevage!D25)/2 -> 2 | G16: Bâtiment | H16: Bâtiment + stockage
B17: Porcs produits / truie en prod. | C17: =IF(C15<>0,(+SUM(Elevage!D26:D27)-SUM(Elevage!C26:C27)+SUM(Elevage!C32:C35)-SUM(Elevage!C41:C42))/C15,"") -> 26.953875 | H17: et/ou compostage
B18: I.C. global, kg/kg | C18: =G42/(G49-Elevage!F37) -> 2.666354808 | E18: Emanations gazeuses, % | G18: =Elevage!M64 -> 24 | H18: =+Elevage!N65 -> 29.32
B22: REJETS | C22: AZOTE | D22: PHOSPHORE | F22: POTASSIUM | H22: CUIVRE | I22: ZINC
C23: kg | D23: P, kg | E23: P2O5,kg | F23: K, kg | G23: K2O,kg | H23: kg | I23: kg
B24: Aliment | C24: =G43 -> 38068.80272 | D24: =G44 -> 7251.362779 | E24: - | F24: =+G45 -> 10228.63046 | G24: - | H24: =IF(+G46>0,G46,"-") -> 72.76784008 | I24: =IF(+G47>0,G47,"-") -> 133.0068805
B25: Apport par la litière | C25: =+G57 -> 0 | D25: =+G58 -> 0 | F25: =+G59 -> 0 | G25: - | H25: - | I25: -
B26: Variation stock animaux | C26: =+D50-C50 -> 0 | D26: =+D51-C51 -> 0 | E26: - | F26: =+D52-C52 -> 0 | G26: - | H26: =IF(H24<>"-",+D53-C53,H24) -> 0.1300758 | I26: =IF(I24<>"-",+D54-C54,I24) -> 0
B27: Exporté / sorties porcs & porcelets | C27: =+F50-E50 -> 15315.76827 | D27: =+F51-E51 -> 3206.545532 | E27: - | F27: =+F52-E52 -> 1267.24002 | G27: - | H27: =IF(H24<>"-",F53-E53,H24) -> 0.6029504308 | I27: =IF(I24<>"-",F54-E54,"-") -> 13.06592385
B28: Excrété | C28: =C24-C26-C27 -> 22753.03445 | D28: =D24-D26-D27 -> 4044.817248 | E28: =(30.97376*2+15.9994*5)/(30.97376*2)*D28 -> 9268.161868 | F28: =F24-F26-F27 -> 8961.390438 | G28: =+F28*1.2 -> 10753.66853 | H28: =IF(H24<>"-",H24-H26-H27,H24) -> 72.03481385 | I28: =IF(I24<>"-",I24-I26-I27,I24) -> 119.9409566
B29: Emanations gazeuses | C29: =C28*H18/100 -> 6671.1897 | D29: - | E29: - | F29: - | G29: - | H29: - | I29: -
B30: Effluent épandable dont | C30: =C28+C25-C29 -> 16081.84475 | D30: =D24+D25-D26-D27 -> 4044.817248 | E30: =(30.97376*2+15.9994*5)/(30.97376*2)*D30 -> 9268.161868 | F30: =F24+F25-F26-F27 -> 8961.390438 | G30: =+F30*1.2 -> 10753.66853 | H30: =+H28 -> 72.03481385 | I30: =+I28 -> 119.9409566
B31: lisier | C31: =$C$30*Elevage!T65 -> 16081.84475 | D31: =D30*Elevage!AA65 -> 4044.817248 | E31: =(30.97376*2+15.9994*5)/(30.97376*2)*D31 -> 9268.161868 | F31: =F30*Elevage!AG65 -> 8961.390438 | G31: =+F31*1.2 -> 10753.66853 | H31: =H30*Elevage!AM65 -> 72.03481385 | I31: =I30*Elevage!AS65 -> 119.9409566
B32: =CONCATENATE(" fumier",IF(sel_mode=2," composté",IF(sel_mode=5,"composté",""))) -> fumier | C32: =$C$30*Elevage!U65 -> 0 | D32: =D30*Elevage!AB65 -> 0 | E32: 0 | F32: =F30*Elevage!AH65 -> 0 | G32: =+F32*1.2 -> 0 | H32: =H30*Elevage!AN65 -> 0 | I32: =I30*Elevage!AT65 -> 0
B33: =CONCATENATE(" raclage-solide",IF(Elevage!K51=3," composté","")) -> raclage-solide | C33: =$C$30*Elevage!W65 -> 0 | D33: =D30*Elevage!AD65 -> 0 | E33: 0 | F33: =F30*Elevage!AJ65 -> 0 | G33: 0 | H33: =H30*Elevage!AP65 -> 0 | I33: =I30*Elevage!AV65 -> 0
B34: raclage-liquide | C34: =$C$30*Elevage!X65 -> 0 | D34: =D30*Elevage!AE65 -> 0 | E34: 0 | F34: =F30*Elevage!AK65 -> 0 | G34: 0 | H34: =H30*Elevage!AQ65 -> 0 | I34: =I30*Elevage!AW65 -> 0
B39: BILAN ENTREES/SORTIES
C40: Début | D40: Fin | E40: Achats | F40: Ventes | G40: Bilan
B41: Aliments
B42: - kg | C42: =Stock_Début!D11 -> 0 | D42: =Stock_Fin!D11 -> 0 | E42: =Aliments!D11 -> 1561151.553 | F42: - | G42: =E42+C42-D42 -> 1561151.553
B43: - Azote, kg | C43: =Stock_Début!J11 -> 0 | D43: =Stock_Fin!J11 -> 0 | E43: =Aliments!J11 -> 38068.80272 | F43: - | G43: 38068.80272 | H43: (N entré)
B44: - Phosphore, kg (P) | C44: =Stock_Début!K11 -> 0 | D44: =Stock_Fin!K11 -> 0 | E44: =Aliments!K11 -> 7251.362779 | F44: - | G44: 7251.362779 | H44: (P entré)
B45: - Potassium, kg (K) | C45: =+Stock_Début!L11 -> 0 | D45: =+Stock_Fin!L11 -> 0 | E45: =Aliments!L11 -> 10228.63046 | F45: - | G45: 10228.63046 | H45: (K entré)
B46: - Cuivre, kg | C46: =+Stock_Début!M11/1000 -> 0 | D46: =+Stock_Fin!M11/1000 -> 0 | E46: =Aliments!M11/1000 -> 72.76784008 | F46: - | G46: 72.76784008 | H46: (Cu entré)
B47: - Zinc, kg | C47: =+Stock_Début!N11/1000 -> 0 | D47: =+Stock_Fin!N11/1000 -> 0 | E47: =Aliments!N11/1000 -> 133.0068805 | F47: - | G47: 133.0068805 | H47: (Zn entré)
B48: Animaux
B49: - kg | C49: =Elevage!X28 -> 169700 | D49: =Elevage!Y28 -> 169700 | E49: =Elevage!S38 -> 11000 | F49: =Elevage!M38 -> 610354.305 | G49: =-C49+D49+F49-E49 -> 599354.305
B50: - Azote, kg | C50: =Elevage!N28 -> 4296.070774 | D50: =Elevage!O28 -> 4296.070774 | E50: =Elevage!T38 -> 280.8186658 | F50: =Elevage!N38 -> 15596.58694 | G50: 15315.76827 | H50: (N retenu)
B51: - Phosphore, kg (P) | C51: =Elevage!P28 -> 907.895 | D51: =Elevage!Q28 -> 907.895 | E51: =Elevage!U38 -> 58.85 | F51: =Elevage!O38 -> 3265.395532 | G51: 3206.545532 | H51: (P retenu)
B52: - Potassium, kg (K) | C52: =+Elevage!R28 -> 370.894056 | D52: =+Elevage!S28 -> 370.894056 | E52: =Elevage!V38 -> 23.69268 | F52: =Elevage!P38 -> 1290.9327 | G52: 1267.24002 | H52: (K retenu)
B53: - Cuivre, kg | C53: =+Elevage!T28 -> 0.0406424 | D53: =+Elevage!U28 -> 0.1707182 | E53: =Elevage!W38 -> 0.011066 | F53: =Elevage!Q38 -> 0.6140164308 | G53: 0.7330262308 | H53: (Cu retenu)
B54: - Zinc, kg | C54: =+Elevage!V28 -> 3.69946 | D54: =+Elevage!W28 -> 3.69946 | E54: =Elevage!X38 -> 0.2398 | F54: =Elevage!R38 -> 13.30572385 | G54: 13.06592385 | H54: (Zn retenu)
B55: Litières
B56: - kg | C56: - | D56: - | E56: =Litières!D11 -> 0 | F56: - | G56: =+E56 -> 0
B57: - Azote, kg | C57: - | D57: - | E57: =Litières!L11 -> 0 | F57: - | G57: =+E57 -> 0 | H57: (N entré)
B58: - Phosphore, kg (P) | C58: - | D58: - | E58: =Litières!M11 -> 0 | F58: - | G58: =+E58 -> 0 | H58: (P entré)
B59: - Potassium, kg (K) | C59: - | D59: - | E59: =Litières!N11 -> 0 | F59: - | G59: =+E59 -> 0 | H59: (K entré)

Sheet Standard (hidden)
A1: Feuille de calcul - ne pas supprimer
C2: =IF(Elevage!C2<>0,Elevage!C2,"") -> 
B3: Références | C3: =IF(Elevage!C3<>0,Elevage!C3,"") -> EARL Pemoc'h Gouez
B4: de l'élevage | C4: =IF(Elevage!C4<>0,Elevage!C4,"") -> 200 truies naisseur-engraisseur
C5: =IF(Elevage!C5<>0,Elevage!C5,"") -> 
B7: =+'Bilan Simplifié'!B7 -> Effluent | C7: =+'Bilan Simplifié'!C7 -> 100% LISIER (en % de N excrété)
B10: BILAN | C10: N | D10: P | E10: K
B11: Ingéré | C11: ='Bilan Simplifié'!C24 -> 38068.80272 | D11: ='Bilan Simplifié'!D24 -> 7251.362779 | E11: =+'Bilan Simplifié'!F24 -> 10228.63046
B12: Retenu | C12: =+'Bilan Simplifié'!C27+'Bilan Simplifié'!C26 -> 15315.76827 | D12: =+'Bilan Simplifié'!D27+'Bilan Simplifié'!D26 -> 3206.545532 | E12: =+'Bilan Simplifié'!F27+'Bilan Simplifié'!F26 -> 1267.24002 | Q12: =HLOOKUP(Elevage!$K$51+4,Standard!$N$18:$T$23,5) -> 1.21
B13: Air | C13: =+'Bilan Simplifié'!C29 -> 6671.1897
B14: =CONCATENATE("Effluent","*") -> Effluent* | C14: =+'Bilan Simplifié'!C30 -> 16081.84475 | D14: =+'Bilan Simplifié'!D30 -> 4044.817248 | E14: =+'Bilan Simplifié'!F30 -> 8961.390438
M16: Effectif corrigé | N16: Standard | O16: Standard | P16: Standard | Q16: Standard | R16: Standard | S16: Standard | T16: Standard | Y16: Biphase | Z16: Biphase | AA16: Biphase | AB16: Biphase | AC16: Biphase | AD16: Biphase | AE16: Biphas
B17: =+C7 -> 100% LISIER (en % de N excrété) | I17: si 100% Lisier | N17: Lisier | O17: P. Accum. | P17: P.Acc.+ C. | Q17: S. Accum. | R17: S. Acc.+ C. | S17: RcV | T17: RcV_comp | Y17: Lisier | Z17: P. Accum. | AA17: P.Acc.+ C. | AB17: S. Accum. | AC17: S. Acc.+ C. | AD17: RcV | AE17: RcV_comp
B18: AZOTE | C18: Effectifs | D18: Bilan | E18: Standard | F18: Biphase | I18: =+E18 -> Standard | J18: =+F18 -> Biphase | L18: N | N18: 1 | O18: 2 | P18: 3 | Q18: 4 | R18: 5 | S18: 6 | T18: 7 | U18: Lit | V18: RacV | W18: Res | Y18: =+N18 -> 1 | Z18: =+O18 -> 2 | AA18: =+P18 -> 3 | AB18: =+Q18 -> 4 | AC18: =+R18 -> 5 | AD18: 6 | AE18: 7 | AF18: Sel | AG18: RacV | AH18: Res
B19: Reproducteurs | C19: =(+Elevage!C23+Elevage!D23+Elevage!C25+Elevage!D25)/2 -> 182 | E19: =C19*W19 -> 3166.8 | F19: =+C19*AH19 -> 2611.7 | I19: =+C19*N19 -> 3166.8 | J19: =+C19*Y19 -> 2611.7 | L19: Truie | M19: =C19 -> 182 | N19: 17.4 | O19: 14.4 | P19: 12.1 | Q19: =O19 -> 14.4 | R19: =P19 -> 12.1 | U19: =HLOOKUP(Elevage!$K$45,Standard!$N$18:$R$22,2) -> 17.4 | W19: =(U19*pclt+N19*(100-pclt))/100 -> 17.4 | Y19: 14.35 | Z19: 12.6 | AA19: 10.7 | AB19: =Z19 -> 12.6 | AC19: =AA19 -> 10.7 | AF19: =HLOOKUP(Elevage!$K$45,$Y$18:$AC$22,2) -> 14.35 | AH19: =(AF19*pclt+Y19*(100-pclt))/100 -> 14.35
B20: Jeunes truies | C20: =(Elevage!C24+Elevage!D24)/2 -> 20 | E20: =C20*W20 -> 190.2 | F20: =+C20*AH20 -> 156 | I20: =+C20*N20 -> 190.2 | J20: =+C20*Y20 -> 156 | L20: JT | M20: =C20 -> 20 | N20: =N22*3 -> 9.51 | O20: =O22*3 -> 6.69 | P20: 4.86 | Q20: 4.05 | R20: 3.63 | U20: =HLOOKUP(Elevage!$K$45,Standard!$N$18:$R$22,3) -> 9.51 | W20: =(U20*pcljr+N20*(100-pcljr))/100 -> 9.51 | Y20: =Y22*3 -> 7.8 | Z20: =Z22*3 -> 5.64 | AA20: 3.99 | AB20: 3.33 | AC20: 2.97 | AF20: =HLOOKUP(Elevage!$K$45,$Y$18:$AC$22,3) -> 7.8 | AH20: =(AF20*pcljr+Y20*(100-pcljr))/100 -> 7.8
B21: Porcelets produits | C21: =IF(+Elevage!C34+Elevage!C35+Elevage!C33-Elevage!C42<0,0,+Elevage!C34+Elevage!C35+Elevage!C33-Elevage!C42) -> 4851.6975 | E21: =C21*W21 -> 2134.7469 | F21: =+C21*AH21 -> 1892.162025 | I21: =+C21*N21 -> 2134.7469 | J21: =+C21*Y21 -> 1892.162025 | L21: PS | M21: =(C21+(Elevage!D26*Elevage!F26-Elevage!C26*Elevage!E26)/(31-8)) -> 4851.6975 | N21: 0.44 | O21: 0.31 | P21: 0.22 | Q21: 0.18 | R21: 0.17 | U21: =HLOOKUP(Elevage!$K$45,Standard!$N$18:$R$22,4) -> 0.44 | W21: =(U21*pclp+N21*(100-pclp))/100 -> 0.44 | Y21: 0.39 | Z21: 0.29 | AA21: 0.2 | AB21: 0.17 | AC21: 0.15 | AF21: =HLOOKUP(Elevage!$K$45,$Y$18:$AC$22,4) -> 0.39 | AH21: =(AF21*pclp+Y21*(100-pclp))/100 -> 0.39
B22: Porcs à l'engrais produits | C22: =+Elevage!C35+Elevage!C34 -> 4851.6975 | E22: =IF(Elevage!D35<118,C22*W22,C22*(W22+W23*(Elevage!D35-118))) -> 15379.88108 | F22: =IF(Elevage!D35<118,C22*AH22,C22*(AH22+AH23*(Elevage!D35-118))) -> 12614.4135 | I22: =IF(Elevage!D35<118,C22*N22,C22*(N22+N23*(Elevage!D35-118))) -> 15379.88108 | J22: =IF(Elevage!D35<118,C22*Y22,C22*(Y22+Y23*(Elevage!D35-118))) -> 12614.4135 | L22: Eng | M22: =C22+(Elevage!D27*Elevage!F27-Elevage!C27*Elevage!E27)/(Elevage!D35-8) -> 4851.6975 | N22: 3.17 | O22: 2.23 | P22: 1.62 | Q22: 1.35 | R22: 1.21 | S22: 3.38 | T22: 2.9 | U22: =HLOOKUP(Elevage!$K$45,Standard!$N$18:$R$22,5) -> 3.17 | V22: =IF(Elevage!$K$51>1,HLOOKUP(Elevage!$K$51+4,Standard!$N$18:$T$23,5),0) -> 0 | W22: =(U22*pcle+V22*pcve+N22*(100-pcle-pcve))/100 -> 3.17 | Y22: 2.6 | Z22: 1.88 | AA22: 1.33 | AB22: 1.11 | AC22: 0.99 | AD22: 2.76 | AE22: 2.37 | AF22: =HLOOKUP(Elevage!$K$45,$Y$18:$AC$22,5) -> 2.6 | AG22: =IF(Elevage!$K$51>1,HLOOKUP(Elevage!$K$51+4,Standard!$Y$18:$AE$23,5),0) -> 0 | AH22: =(AF22*pcle+AG22*pcve+Y22*(100-pcle-pcve))/100 -> 2.6
B23: Total | D23: ='Bilan Simplifié'!C30 -> 16081.84475 | E23: =SUM(E19:E22) -> 20871.62798 | F23: =SUM(F19:F22) -> 17274.27553 | H23: =+D23 -> 16081.84475 | I23: =SUM(I19:I22) -> 20871.62798 | J23: =SUM(J19:J22) -> 17274.27553 | L23: cEng | N23: 0.036 | O23: 0.026 | P23: 0.019 | Q23: 0.015 | R23: 0.014 | S23: 0.039 | T23: 0.033 | U23: =HLOOKUP(Elevage!$K$45,Standard!$N$18:$R$23,5) -> 3.17 | V23: =IF(Elevage!$K$51>1,HLOOKUP(Elevage!$K$51+4,Standard!$N$18:$T$23,6),0) -> 0 | W23: =(U23*pcle+V23*pcve+N23*(100-pcle-pcve))/100 -> 0.036 | Y23: 0.03 | Z23: 0.022 | AA23: 0.015 | AB23: 0.013 | AC23: 0.011 | AD23: 0.032 | AE23: 0.027 | AF23: =HLOOKUP(Elevage!$K$45,$Y$18:$AC$23,5) -> 2.6 | AG23: =IF(Elevage!$K$51>1,HLOOKUP(Elevage!$K$51+4,Standard!$Y$18:$AE$23,6),0) -> 0 | AH23: =(AF23*pcle+AG23*pcve+Y23*(100-pcle-pcve))/100 -> 0.03
D24: =+D23/E23 -> 0.7705122364 | E24: 1 | F24: =+F23/E23 -> 0.8276438975 | I24: =+I23/$E$23 -> 1 | J24: =+J23/$E$23 -> 0.8276438975
N25: =+N16 -> Standard | O25: Standard | P25: Standard | Q25: Standard | R25: Standard | S25: Standard | T25: Standard | Y25: =+Y16 -> Biphase | Z25: Biphase | AA25: Biphase | AB25: Biphase | AC25: Biphase
B26: =+B17 -> 100% LISIER (en % de N excrété) | I26: =+I17 -> si 100% Lisier | N26: Lisier | O26: P. Accum. | P26: P.Acc.+ C. | Q26: S. Accum. | R26: S. Acc.+ C. | S26: RcV | T26: RcV_comp | Y26: Lisier | Z26: P. Accum. | AA26: P.Acc.+ C. | AB26: S. Accum. | AC26: S. Acc.+ C.
B27: PHOSPHORE - P2O5 | C27: =+C18 -> Effectifs | D27: Bilan | E27: Standard | F27: Biphase | I27: =+E27 -> Standard | J27: =+F27 -> Biphase | L27: P2O5 | N27: 1 | O27: 2 | P27: 3 | Q27: 4 | R27: 5 | S27: 6 | T27: 7 | U27: Sel | V27: RacV | W27: Res | Y27: 1 | Z27: 2 | AA27: 3 | AB27: 4 | AC27: 5 | AD27: 6 | AE27: 7 | AF27: Sel | AG27: RacV | AH27: Res
B28: =+B19 -> Reproducteurs | C28: =+C19 -> 182 | E28: =C28*W28 -> 2566.2 | F28: =+C28*AH28 -> 2002 | I28: =+C28*N28 -> 2566.2 | J28: =+C28*Y28 -> 2002 | L28: =+L19 -> Truie | M28: =M19 -> 182 | N28: 14.1 | O28: 14.9 | P28: =+O28 -> 14.9 | Q28: =+O28 -> 14.9 | R28: =+Q28 -> 14.9 | U28: =HLOOKUP(Elevage!$K$45,$N$27:$R$31,2) -> 14.1 | W28: =(U28*pclt+N28*(100-pclt))/100 -> 14.1 | Y28: 11 | Z28: 11.8 | AA28: =+Z28 -> 11.8 | AB28: =+Z28 -> 11.8 | AC28: =+AB28 -> 11.8 | AF28: =HLOOKUP(Elevage!$K$45,$Y$27:$AC$31,2) -> 11 | AH28: =(AF28*pclt+Y28*(100-pclt))/100 -> 11
B29: =+B20 -> Jeunes truies | C29: =C20 -> 20 | E29: =C29*W29 -> 127.2 | F29: =+C29*AH29 -> 87 | I29: =+C29*N29 -> 127.2 | J29: =+C29*Y29 -> 87 | L29: JT | M29: =M20 -> 20 | N29: =N31*3 -> 6.36 | O29: =O31*3 -> 6.69 | P29: 6.69 | Q29: 6.36 | R29: 6.36 | U29: =HLOOKUP(Elevage!$K$45,$N$27:$R$31,3) -> 6.36 | W29: =(U29*pcljr+N29*(100-pcljr))/100 -> 6.36 | Y29: =Y31*3 -> 4.35 | Z29: =Z31*3 -> 4.68 | AA29: 4.68 | AB29: 4.35 | AC29: 4.35 | AF29: =HLOOKUP(Elevage!$K$45,$Y$27:$AC$31,3) -> 4.35 | AH29: =(AF29*pcljr+Y29*(100-pcljr))/100 -> 4.35
B30: =+B21 -> Porcelets produits | C30: =+C21 -> 4851.6975 | E30: =C30*W30 -> 1504.026225 | F30: =+C30*AH30 -> 1115.890425 | I30: =+C30*N30 -> 1504.026225 | J30: =+C30*Y30 -> 1115.890425 | L30: =+L21 -> PS | M30: 4851.6975 | N30: 0.31 | O30: 0.32 | P30: =+O30 -> 0.32 | Q30: 0.31 | R30: =+Q30 -> 0.31 | U30: =HLOOKUP(Elevage!$K$45,$N$27:$R$31,4) -> 0.31 | W30: =(U30*pclp+N30*(100-pclp))/100 -> 0.31 | Y30: 0.23 | Z30: 0.24 | AA30: =+Z30 -> 0.24 | AB30: 0.23 | AC30: 0.23 | AF30: =HLOOKUP(Elevage!$K$45,$Y$27:$AC$31,4) -> 0.23 | AH30: =(AF30*pclp+Y30*(100-pclp))/100 -> 0.23
B31: =+B22 -> Porcs à l'engrais produits | C31: =+C22 -> 4851.6975 | E31: =IF(Elevage!D35<118,C31*W31,C31*(W31+W32*(Elevage!D35-118))) -> 10285.5987 | F31: =IF(Elevage!D35<118,C31*AH31,C31*(AH31+AH32*(Elevage!D35-118))) -> 7034.961375 | I31: =IF(Elevage!D35<118,C31*N31,C31*(N31+N32*(Elevage!D35-118))) -> 10285.5987 | J31: =IF(Elevage!D35<118,C31*Y31,C31*(Y31+Y32*(Elevage!D35-118))) -> 7034.961375 | L31: =+L22 -> Eng | M31: 4851.6975 | N31: 2.12 | O31: 2.23 | P31: =+O31 -> 2.23 | Q31: 2.12 | R31: =+Q31 -> 2.12 | S31: 2.01 | T31: =S31 -> 2.01 | U31: =HLOOKUP(Elevage!$K$45,$N$27:$R$31,5) -> 2.12 | V31: =IF(Elevage!$K$51>1,HLOOKUP(Elevage!$K$51+4,Standard!$N$27:$T$32,5),0) -> 0 | W31: =(U31*pcle+V31*pcve+N31*(100-pcle-pcve))/100 -> 2.12 | Y31: 1.45 | Z31: 1.56 | AA31: 1.56 | AB31: 1.45 | AC31: 1.45 | AD31: 1.36 | AE31: =AD31 -> 1.36 | AF31: =HLOOKUP(Elevage!$K$45,$Y$27:$AC$31,5) -> 1.45 | AG31: =IF(Elevage!$K$51>1,HLOOKUP(Elevage!$K$51+4,Standard!$Y$27:$AE$32,5),0) -> 0 | AH31: =(AF31*pcle+AG31*pcve+Y31*(100-pcle-pcve))/100 -> 1.45
B32: Total | D32: =+'Bilan Simplifié'!E30 -> 9268.161868 | E32: =SUM(E28:E31) -> 14483.02492 | F32: =SUM(F28:F31) -> 10239.8518 | H32: =+D32 -> 9268.161868 | I32: =SUM(I28:I31) -> 14483.02492 | J32: =SUM(J28:J31) -> 10239.8518 | L32: cEng | N32: 0.024 | O32: 0.026 | P32: =O32 -> 0.026 | Q32: 0.024 | R32: 0.024 | S32: 0.024 | T32: =S32 -> 0.024 | U32: =HLOOKUP(Elevage!$K$45,$N$27:$R$32,5) -> 2.12 | V32: =IF(Elevage!$K$51>1,HLOOKUP(Elevage!$K$51+4,Standard!$N$27:$T$32,6),0) -> 0 | W32: =(U32*pcle+V32*pcve+N32*(100-pcle-pcve))/100 -> 0.024 | Y32: 0.017 | Z32: 0.018 | AA32: 0.018 | AB32: 0.017 | AC32: =AB32 -> 0.017 | AD32: 0.015 | AE32: =AD32 -> 0.015 | AF32: =HLOOKUP(Elevage!$K$45,$Y$27:$AC$32,5) -> 1.45 | AG32: =IF(Elevage!$K$51>1,HLOOKUP(Elevage!$K$51+4,Standard!$Y$27:$AE$32,6),0) -> 0 | AH32: =(AF32*pcle+AG32*pcve+Y32*(100-pcle-pcve))/100 -> 0.017
D33: =+D32/E32 -> 0.6399327431 | E33: 1 | F33: =+F32/E32 -> 0.7070243857 | I33: =+I32/$E$32 -> 1 | J33: =+J32/$E$32 -> 0.7070243857
N34: =+N25 -> Standard | O34: Standard | P34: Standard | Q34: Standard | R34: Standard | S34: Standard | T34: Standard | Y34: =+Y25 -> Biphase | Z34: Biphase | AA34: Biphase | AB34: Biphase | AC34: Biphase
B35: =+B26 -> 100% LISIER (en % de N excrété) | I35: =+I26 -> si 100% Lisier | N35: Lisier | O35: P. Accum. | P35: P.Acc.+ C. | Q35: S. Accum. | R35: S. Acc.+ C. | S35: RcV | T35: RcV_comp | Y35: Lisier | Z35: P. Accum. | AA35: P.Acc.+ C. | AB35: S. Accum. | AC35: S. Acc.+ C.
B36: POTASSIUM - K2O | C36: =+C27 -> Effectifs | D36: Bilan | E36: Standard | F36: Biphase | I36: =+E36 -> Standard | J36: =+F36 -> Biphase | L36: K2O | N36: 1 | O36: 2 | P36: 3 | Q36: 4 | R36: 5 | S36: 6 | T36: 7 | U36: Sel | W36: Res | Y36: =+N36 -> 1 | Z36: =+O36 -> 2 | AA36: =+P36 -> 3 | AB36: =+Q36 -> 4 | AC36: =+R36 -> 5 | AD36: 6 | AE36: 7 | AF36: Sel | AH36: Res
B37: =+B28 -> Reproducteurs | C37: =+C28 -> 182 | E37: =C37*W37 -> 1692.6 | F37: =+C37*AH37 -> 1692.6 | I37: =+C37*N37 -> 1692.6 | J37: =+C37*Y37 -> 1692.6 | L37: =+L28 -> Truie | M37: =M28 -> 182 | N37: 9.3 | O37: 15 | P37: =+O37 -> 15 | Q37: =N37 -> 9.3 | R37: =+Q37 -> 9.3 | U37: =HLOOKUP(Elevage!$K$45,$N$36:$R$40,2) -> 9.3 | W37: =(U37*pclt+N37*(100-pclt))/100 -> 9.3 | Y37: 9.3 | Z37: 15 | AA37: =+Z37 -> 15 | AB37: =Y37 -> 9.3 | AC37: =+AB37 -> 9.3 | AF37: =HLOOKUP(Elevage!$K$45,$Y$36:$AC$40,2) -> 9.3 | AH37: =(AF37*pclt+Y37*(100-pclt))/100 -> 9.3
B38: =+B29 -> Jeunes truies | C38: =C20 -> 20 | E38: =C38*W38 -> 114 | F38: =+C38*AH38 -> 95.4 | I38: =+C38*N38 -> 114 | J38: =+C38*Y38 -> 95.4 | L38: JT | M38: =M29 -> 20 | N38: =N40*3 -> 5.7 | O38: =O40*3 -> 7.74 | P38: 7.74 | Q38: 5.88 | R38: 5.88 | U38: =HLOOKUP(Elevage!$K$45,$N$36:$R$40,3) -> 5.7 | W38: =(U38*pcljr+N38*(100-pcljr))/100 -> 5.7 | Y38: =Y40*3 -> 4.77 | Z38: =Z40*3 -> 6.81 | AA38: 6.81 | AB38: 4.92 | AC38: 4.92 | AF38: =HLOOKUP(Elevage!$K$45,$Y$36:$AC$40,3) -> 4.77 | AH38: =(AF38*pcljr+Y38*(100-pcljr))/100 -> 4.77
B39: =+B30 -> Porcelets produits | C39: =+C30 -> 4851.6975 | E39: =C39*W39 -> 1649.57715 | F39: =+C39*AH39 -> 1504.026225 | I39: =+C39*N39 -> 1649.57715 | J39: =+C39*Y39 -> 1504.026225 | L39: =+L30 -> PS | M39: 4851.6975 | N39: 0.34 | O39: 0.46 | P39: =O39 -> 0.46 | Q39: 0.35 | R39: =+Q39 -> 0.35 | U39: =HLOOKUP(Elevage!$K$45,$N$36:$R$40,4) -> 0.34 | W39: =(U39*pclp+N39*(100-pclp))/100 -> 0.34 | Y39: 0.31 | Z39: 0.42 | AA39: =+Z39 -> 0.42 | AB39: 0.32 | AC39: =+AB39 -> 0.32 | AF39: =HLOOKUP(Elevage!$K$45,$Y$36:$AC$40,4) -> 0.31 | AH39: =(AF39*pclp+Y39*(100-pclp))/100 -> 0.31
B40: =+B31 -> Porcs à l'engrais produits | C40: =+C31 -> 4851.6975 | E40: =IF(Elevage!D35<118,C40*W40,C40*(W40+W41*(Elevage!D35-118))) -> 9218.22525 | F40: =IF(Elevage!D35<118,C40*AH40,C40*(AH40+AH41*(Elevage!D35-118))) -> 7714.199025 | I40: =IF(Elevage!D35<118,C40*N40,C31*(N40+N41*(Elevage!D35-118))) -> 9218.22525 | J40: =IF(Elevage!D35<118,C31*Y40,C31*(Y40+Y41*(Elevage!D35-118))) -> 7714.199025 | L40: =+L31 -> Eng | M40: 4851.6975 | N40: 1.9 | O40: 2.58 | P40: =O40 -> 2.58 | Q40: 1.96 | R40: =+Q40 -> 1.96 | S40: 1.82 | T40: =S40 -> 1.82 | U40: =HLOOKUP(Elevage!$K$45,$N$36:$R$40,5) -> 1.9 | V40: =IF(Elevage!$K$51>1,HLOOKUP(Elevage!$K$51+4,Standard!$N$36:$T$41,5),0) -> 0 | W40: =(U40*pcle+V40*pcve+N40*(100-pcle-pcve))/100 -> 1.9 | Y40: 1.59 | Z40: 2.27 | AA40: =+Z40 -> 2.27 | AB40: 1.64 | AC40: =+AB40 -> 1.64 | AD40: 1.53 | AE40: =AD40 -> 1.53 | AF40: =HLOOKUP(Elevage!$K$45,$Y$36:$AC$40,5) -> 1.59 | AG40: =IF(Elevage!$K$51>1,HLOOKUP(Elevage!$K$51+4,Standard!$Y$36:$AE$41,5),0) -> 0 | AH40: =(AF40*pcle+AG40*pcve+Y40*(100-pcle-pcve))/100 -> 1.59
B41: Total | D41: ='Bilan Simplifié'!G30 -> 10753.66853 | E41: =SUM(E37:E40) -> 12674.4024 | F41: =SUM(F37:F40) -> 11006.22525 | H41: =+D41 -> 10753.66853 | I41: =SUM(I37:I40) -> 12674.4024 | J41: =SUM(J37:J40) -> 11006.22525 | L41: cEng | N41: 0.022 | O41: 0.031 | P41: =O41 -> 0.031 | Q41: 0.022 | R41: =Q41 -> 0.022 | S41: 0.021 | T41: =S41 -> 0.021 | U41: =HLOOKUP(Elevage!$K$45,$N$36:$R$41,5) -> 1.9 | V41: =IF(Elevage!$K$51>1,HLOOKUP(Elevage!$K$51+4,Standard!$N$36:$T$41,6),0) -> 0 | W41: =(U41*pcle+V41*pcve+N41*(100-pcle-pcve))/100 -> 0.022 | Y41: 0.018 | Z41: 0.026 | AA41: =Z41 -> 0.026 | AB41: 0.019 | AC41: =AB41 -> 0.019 | AD41: 0.018 | AE41: =AD41 -> 0.018 | AF41: =HLOOKUP(Elevage!$K$45,$Y$36:$AC$41,5) -> 1.59 | AG41: =IF(Elevage!$K$51>1,HLOOKUP(Elevage!$K$51+4,Standard!$Y$36:$AE$41,6),0) -> 0 | AH41: =(AF41*pcle+AG41*pcve+Y41*(100-pcle-pcve))/100 -> 0.018
D42: =+D41/E41 -> 0.8484556657 | E42: 1 | F42: =+F41/E41 -> 0.868382185 | I42: =+I41/$E$41 -> 1 | J42: =+J41/$E$41 -> 0.868382185

Sheet Gra_N
G2: =Récapitulatif!E17 -> EARL Pemoc'h Gouez
G3: =Récapitulatif!E18 -> 200 truies naisseur-engraisseur
G4: =Récapitulatif!E19 -> 
F5: Bilan d'azote
E9: du | F9: =Elevage!C9 -> 2017-01-01 | G9: au | H9: =Elevage!C10 -> 2017-12-31
C11: =Elevage!L66 -> 100% LISIER (en % de N excrété)
D16: Devenir de l'azote utilisé | H16: Bilan d'azote de l'élevage | Q16: Azote rejeté sela la référence utilisée
C17: BILAN
C18: Ingéré | D18: =K20 -> 1 | K18: % | L18: %
C19: Retenu | D19: =K23 -> 0.04023180972 | J19: kg | K19: intrants | L19: excrété
C20: Air | D20: =K25 -> 0.01752403339 | H20: Aliment | J20: =+'Bilan Simplifié'!C24*10 -> 380688.0272 | K20: =J20/($J$20+$J$21) -> 1
C21: =CONCATENATE("Effluent","*") -> Effluent* | D21: =K26 -> 0.04224415689 | H21: Apport par la litière | J21: =+'Bilan Simplifié'!C25 -> 0 | K21: =J21/($J$20+$J$21) -> 0
H22: Variation stock animaux | J22: =+'Bilan Simplifié'!C26 -> 0 | K22: =J22/($J$20+$J$21) -> 0 | L22: =J22/($J$20+$J$21) -> 0
H23: Exporté / sorties porcs | J23: =+'Bilan Simplifié'!C27 -> 15315.76827 | K23: =J23/($J$20+$J$21) -> 0.04023180972
H24: Excrété | J24: =+'Bilan Simplifié'!C28 -> 22753.03445 | K24: =J24/($J$20+$J$21) -> 0.05976819028 | L24: 1
H25: Volatilisation | J25: ='Bilan Simplifié'!C29 -> 6671.1897 | K25: =+J25/(J20+J21) -> 0.01752403339 | L25: =+J25/J24 -> 0.2932
H26: Effluent épandable | J26: =+'Bilan Simplifié'!C30 -> 16081.84475 | K26: =J26/($J$20+$J$21) -> 0.04224415689 | L26: =+J26/J24 -> 0.7068
H27: ='Bilan Simplifié'!B31 -> lisier | J27: ='Bilan Simplifié'!C31 -> 16081.84475
H28: ='Bilan Simplifié'!B32 -> fumier | J28: ='Bilan Simplifié'!C32 -> 0
H29: ='Bilan Simplifié'!B33 -> raclage-solide | J29: ='Bilan Simplifié'!C33 -> 0
H30: ='Bilan Simplifié'!B34 -> raclage-liquide | J30: ='Bilan Simplifié'!C34 -> 0

Sheet Gra_P
G2: =Récapitulatif!E17 -> EARL Pemoc'h Gouez
G3: =Récapitulatif!E18 -> 200 truies naisseur-engraisseur
G4: =Récapitulatif!E19 -> 
E5: Bilan de phosphore
E9: du | F9: =Elevage!C9 -> 2017-01-01 | G9: au | H9: =Elevage!C10 -> 2017-12-31
C11: =Elevage!L66 -> 100% LISIER (en % de N excrété)
D16: Devenir du phosphore utilisé | H16: Bilan de phosphore de l'élevage | Q16: Phosphore rejeté sela la référence utilisée
C17: BILAN
C18: Ingéré | D18: =L20 -> 1 | J18: Phosphore | L18: P, %
C19: Retenu | D19: =L23 -> 0.4421990224 | J19: P, kg | K19: P2O5, kg | L19: intrants
C20: Air | H20: Aliment | J20: =+'Bilan Simplifié'!D24 -> 7251.362779 | L20: =J20/($J$20+$J$21) -> 1
C21: =CONCATENATE("Effluent","*") -> Effluent* | D21: =L24 -> 0.5578009776 | H21: Apport par la litière | J21: =+'Bilan Simplifié'!D25 -> 0 | L21: =J21/($J$20+$J$21) -> 0
H22: Variation stock animaux | J22: =+'Bilan Simplifié'!D26 -> 0 | L22: 0
H23: Exporté / sorties porcs | J23: =+'Bilan Simplifié'!D27 -> 3206.545532 | L23: 0.4421990224
H24: Excrété | J24: =+'Bilan Simplifié'!D28 -> 4044.817248 | L24: 0.5578009776
H25: Effluent épandable | J25: =+'Bilan Simplifié'!D30 -> 4044.817248 | K25: =+J25*2.29 -> 9262.631497 | L25: 0.5578009776
H26: ='Bilan Simplifié'!B31 -> lisier | J26: ='Bilan Simplifié'!D31 -> 4044.817248 | K26: ='Bilan Simplifié'!E31 -> 9268.161868
H27: ='Bilan Simplifié'!B32 -> fumier | J27: ='Bilan Simplifié'!D32 -> 0 | K27: ='Bilan Simplifié'!E32 -> 0
H28: ='Bilan Simplifié'!B33 -> raclage-solide | J28: ='Bilan Simplifié'!D33 -> 0 | K28: ='Bilan Simplifié'!E33 -> 0
H29: ='Bilan Simplifié'!B34 -> raclage-liquide | J29: ='Bilan Simplifié'!D34 -> 0 | K29: ='Bilan Simplifié'!E34 -> 0

Sheet Gra_K
G2: =Récapitulatif!E17 -> EARL Pemoc'h Gouez
G3: =Récapitulatif!E18 -> 200 truies naisseur-engraisseur
G4: =Récapitulatif!E19 -> 
E5: Bilan de potassium
E9: du | F9: =Elevage!C9 -> 2017-01-01 | G9: au | H9: =Elevage!C10 -> 2017-12-31
C11: =Elevage!L66 -> 100% LISIER (en % de N excrété)
D16: Devenir du potassium utilisé | H16: Bilan de potassium de l'élevage | Q16: Potassium (K2O) rejeté sela la référence utilisée
J18: Potassium | L18: K, %
C19: Retenu | D19: =L23 -> 0.1238914657 | J19: K, kg | K19: K2O, kg | L19: intrants
C20: Effluent* | D20: =L24 -> 0.8761085343 | H20: Aliment | J20: =+'Bilan Simplifié'!F24 -> 10228.63046 | L20: =J20/($J$20+$J$21) -> 1
H21: Apport par la litière | J21: =+'Bilan Simplifié'!F25 -> 0 | L21: =J21/($J$20+$J$21) -> 0
H22: Variation stock animaux | J22: =+'Bilan Simplifié'!F26 -> 0 | L22: 0
H23: Exporté / sorties porcs | J23: =+'Bilan Simplifié'!F27 -> 1267.24002 | L23: 0.1238914657
H24: Excrété | J24: =+'Bilan Simplifié'!F28 -> 8961.390438 | K24: =+J24*1.2 -> 10753.66853 | L24: 0.8761085343
H25: Effluent épandable | J25: =+'Bilan Simplifié'!F30 -> 8961.390438 | K25: =+J25*1.2 -> 10753.66853 | L25: 0.8761085343
H26: ='Bilan Simplifié'!B31 -> lisier | J26: ='Bilan Simplifié'!F31 -> 8961.390438 | K26: =J26*1.2 -> 10753.66853
H27: ='Bilan Simplifié'!B32 -> fumier | J27: ='Bilan Simplifié'!F32 -> 0 | K27: ='Bilan Simplifié'!E32*1.2 -> 0
H28: ='Bilan Simplifié'!B33 -> raclage-solide | J28: ='Bilan Simplifié'!F33 -> 0 | K28: ='Bilan Simplifié'!E33*1.2 -> 0
H29: ='Bilan Simplifié'!B34 -> raclage-liquide | J29: ='Bilan Simplifié'!F34 -> 0 | K29: ='Bilan Simplifié'!E34*1.2 -> 0

Sheet Données (hidden)
A1: Feuille de calcul - ne pas supprimer
A2: BRSPorc : Analyses de la cohérence des données
A4: Fichier
A7: Elevage | B7: =CONCATENATE(Elevage!$C$2) -> 
B8: =CONCATENATE(Elevage!$C$3) -> EARL Pemoc'h Gouez | D8: du | E8: =Elevage!$C$9 -> 2017-01-01
B9: =CONCATENATE(Elevage!$C$4) -> 200 truies naisseur-engraisseur | D9: au | E9: =Elevage!$C$10 -> 2017-12-31
B10: =CONCATENATE(Elevage!$C$5) -> 
A12: Performances
B13: IC global, kg/kg | C13: ='Bilan Simplifié'!$C$18 -> 2.666354808 | E13: dans la feuille bilan simplifié
B14: MAT aliment, % | C14: =Aliments!$E$11 -> 15.24067388 | E14: dans le feuille aliment
B15: P aliment, % | C15: =Aliments!$F$11 -> 0.4644880738 | E15: dans le feuille aliment
A17: Sorties d'animaux | C17: Nombre | E17: dans la feuille élevage
B18: Porcelets sevrés | C18: =Elevage!$C$32 -> 0
B19: Porcelets "de 25-30 kg" | C19: =Elevage!$C$33 -> 0
B20: Jeunes Reproducteurs** | C20: =Elevage!$C$34 -> 0
B21: Porcs charcutiers | C21: =Elevage!$C$35 -> 4851.6975
B22: Truies de réforme | C22: =Elevage!$C$36 -> 100
B23: Équarissage
A25: Achats d'animaux | C25: Nombre | E25: dans la feuille élevage
B26: Porcelets sevrés | C26: =Elevage!$C$41 -> 0
B27: Porcelets "de 25-30 kg" | C27: =Elevage!$C$42 -> 0
B28: Cochettes et verrats | C28: =Elevage!$C$43 -> 100
A30: Azote | C30: Bilan, kg N | E30: dans la feuille bilan simplifié
B31: N ingéré | C31: ='Bilan Simplifié'!$C$24 -> 38068.80272
B32: N litière | C32: ='Bilan Simplifié'!$C$25 -> 0
B33: N Excrété | C33: ='Bilan Simplifié'!$C$28 -> 22753.03445
B34: N Effluent | C34: ='Bilan Simplifié'!$C$30 -> 16081.84475
A36: Phosphore | C36: Bilan, kg P | E36: dans la feuille bilan simplifié
B37: P ingéré | C37: ='Bilan Simplifié'!$D$24 -> 7251.362779
B38: P litière | C38: ='Bilan Simplifié'!$D$25 -> 0
B39: P Excrété | C39: ='Bilan Simplifié'!$D$28 -> 4044.817248
B40: P Effluent | C40: ='Bilan Simplifié'!$D$30 -> 4044.817248

Sheet Cohérence
C1: BRSPorc : Analyses de la cohérence des données (1/2) | L1: BRSPorc : Analyses de la cohérence des données (2/2) | U1: BRSPorc : Analyses de la cohérence des données (3/3)
C3: =Données!A4 -> Fichier | D3: =MID(CELL("nomfichier",A2),SEARCH("[",CELL("nomfichier",A2))+1,SEARCH("]",CELL("nomfichier",A2))-SEARCH("[",CELL("nomfichier",A2))-1) -> BrsPorc_2016_v4_01.xlsm | L3: Caractéristiques de l'élevage
L4: =Analyse!B159 -> Compte tenu de ses ventes cet élevage peut être considéré à :
M5: =IF(Analyse!C6<>0,Analyse!C6,"") -> 1 | N5: =IF(M5<>"",Analyse!B6,"") -> Naisseur engraisseur
C6: =Données!A7 -> Elevage | D6: =Données!B7 ->  | M6: =Analyse!C4 -> 0 | N6: =IF(M6<>"",Analyse!B4,"") -> Naisseur vente au sevrage
D7: =Données!B8 -> EARL Pemoc'h Gouez | G7: =Données!D8 -> du | H7: =Données!E8 -> 2017-01-01 | M7: =Analyse!C5 -> 0 | N7: =IF(M7<>"",Analyse!B5,"") -> Naisseur vente à 30 kg
D8: =Données!B9 -> 200 truies naisseur-engraisseur | G8: =Données!D9 -> au | H8: =Données!E9 -> 2017-12-31 | M8: =Analyse!C7 -> 0 | N8: =IF(M8<>"",Analyse!B7,"") -> Post-sevreur
M9: =Analyse!C8 -> 0 | N9: =IF(M9<>"",Analyse!B8,"") -> Post sevreur-engraisseur
M10: =Analyse!C9 -> 0 | N10: =IF(M10<>"",Analyse!B9,"") -> Engraisseur
C13: Indice de consommation | M13: Quantité d'azote épandable | V13: Quantité de P2O5 épandable
G14: =Analyse!K121 -> - L'indice de consommation global (kg porc sorti / kg aliment entré) estimé par le BRS s'élève à 2.67 kg/kg. Ceci place l'élevage dans les 27% des meilleurs compte tenu de la variablité des élevages suivis en Gestion Technico-Economique en 2014.
C25: Teneur en protéines des aliments
G26: =Analyse!$K$126 -> - La teneur moyenne en protéines de l'aliment est de 15.2 % . Elle est inférieure de 0.5 point(s) à la valeur de 15.8 % qu'aurait cet élevage avec une alimentation biphase. Cet écart est facile à atteindre techniquement.
N30: BRS (Réel) / Biphase Corpen : | Q30: =Analyse!$F$86/Analyse!$D$86 -> 0.9309707214 | W30: BRS (Réel) / Biphase Corpen : | Z30: =Analyse!$F$104/Analyse!$D$104 -> 0.9051070318
N31: BRS (Réel) / BRS (Biph. Moy.) : | Q31: =Analyse!$F$86/Analyse!$E$86 -> 0.9309707214 | W31: BRS (Réel) / BRS (Biphase) : | Z31: =Analyse!$F$104/Analyse!$E$104 -> 0.908333615
N32: BRS (Réel) / Standard Corpen : | Q32: =Analyse!F86/Analyse!C86 -> 0.7705122364 | W32: BRS (Réel) / Standard Corpen : | Z32: =Analyse!F104/Analyse!C104 -> 0.6399327431
P34: =Analyse!K136 -> - La réduction de la quantité d'azote épandable (BRS Réel) par rapport à la valeur calculée avec les références "Biphase Corpen" est estimée à 6.9% | Y34: =Analyse!K148 -> - La réduction de la quantité de phosphore épandable (BRS Réel) par rapport à la valeur calculée avec les références "Biphase Corpen" est estimée à 9.5%
C37: Teneur en phosphore des aliments
G38: =Analyse!$K$131 -> - La teneur moyenne en phosphore de l'aliment est de 0.46 % . Elle est inférieure de 0.03 point(s) à la valeur de 0.49 % qu'aurait cet élevage avec une alimentation biphase.Cet écart nécessite un assez bon niveau technique. | P38: =Analyse!K142 -> - La réduction de la quantité d'azote épandable (BRS Réel) par rapport à celle du même élevage alimenté en biphase avec des performances moyennes (BRS Biph. Moy.) est estimée à 6.9% | Y38: =Analyse!K153 -> - La réduction de la quantité de phosphore épandable (BRS Réel) par rapport à celle du même élevage alimenté en biphase avec des performances moyennes (BRS Biph. Moy.) est estimée à 9.2%
P43: =Analyse!K147 -> - 46 % de cette réduction provient des performances et 54 % de cette réduction provient de l'alimentation. | Y43: =Analyse!K158 -> - 42 % de cette réduction provient des performances et 58 % de cette réduction provient de l'alimentation.

Sheet CheckList
A2: Check-list des justificatifs
B4: Vérification de l'IC global
C5: - Quantités d'aliments utilisées : Bilan Comptable ou Bilan de GTE | D5: TRUE | E5: =NOT(D5) -> FALSE
C6: - Entrées et Sorties d'animaux : Bilan comptable ou Bilan de GTE | D6: TRUE | E6: =NOT(D6) -> FALSE
B8: Vérification de la composition des aliments en achat extérieur | D8: =IF($F$8=1,TRUE,FALSE) -> TRUE | E8: =NOT(D8) -> FALSE | F8: 1
C9: - Récapitulatif des livraisons avec teneur en protéines des aliments | D9: TRUE | E9: =NOT(D9) -> FALSE
C10: - Récapitulatif des livraisons avec teneur moyenne en phosphore des aliments | D10: TRUE | E10: FALSE
C11: - Récapitulatif des livraisons avec teneur en potassium des aliments | D11: TRUE | E11: =NOT(D11) -> FALSE
B14: Vérification de la composition des aliments en FAF (option 1) | D14: =IF($F$8=2,TRUE,FALSE) -> FALSE | E14: =NOT(D14) -> TRUE
C15: - Liste des formules utilisées avec calcul de la teneur moyenne pondérée en protéines | D15: FALSE | E15: TRUE
C16: - Liste des formules utilisées avec calcul de la teneur moyenne pondérée en phosphore | D16: FALSE | E16: TRUE
B19: Vérification de la composition des aliments en FAF (option2) | D19: =IF($F$8=3,TRUE,FALSE) -> FALSE | E19: =NOT(D19) -> TRUE
C20: - Listing des livraisons de complémentaire et des quantités de Matières premières utilisées avec calcul de la teneur moyenne pondérée en protéines | D20: FALSE | E20: TRUE
C21: - Listing des livraisons de complémentaire et des quantités de Matières premières utilisées avec calcul de la teneur moyenne pondéré en phosphore | D21: FALSE | E21: TRUE

Sheet Analyse (hidden)
A2: Détermination des carcatéristiques de l'élevage
B4: Naisseur vente au sevrage | C4: =D4/$D$10 -> 0 | D4: =MAX(Données!C18-Données!C26,0) -> 0
B5: Naisseur vente à 30 kg | C5: 0 | D5: =MAX(Données!C19-D7,0) -> 0
B6: Naisseur engraisseur | C6: 1 | D6: =MAX((C13)-(D4+D5+D7+D8+D9),0) -> 4851.6975
B7: Post-sevreur | C7: 0 | D7: =MIN(MAX((Données!C26-Données!C18),0),Données!C19) -> 0 | E7: =MAX((Données!C26-Données!C18),0) -> 0
B8: Post sevreur-engraisseur | C8: 0 | D8: =IF(Données!C21<>0,MAX(Données!C26-Données!C18-D7,0),0) -> 0
B9: Engraisseur | C9: 0 | D9: =IF(Données!C21<>0,E9-D8-D7,0) -> 0 | E9: =MAX(Données!C26-Données!C18,0)+MAX(Données!C27-Données!C19,0) -> 0
B10: total | C10: 1 | D10: =SUM(D4:D9) -> 4851.6975
C12: Total | D12: NE_Sev | E12: NE_PS | F12: NE_E | G12: PS | H12: PS-E | I12: E
B13: Effectif vendu | C13: =SUM(Données!C18:C21) -> 4851.6975 | D13: =D4 -> 0 | E13: =D5 -> 0 | F13: =D6 -> 4851.6975 | G13: =D7 -> 0 | H13: =D8 -> 0 | I13: =D9 -> 0 | K13: =SUM(D13:I13) -> 4851.6975
B14: Pourcentage de ventes | C14: =SUM(D14:I14) -> 1 | D14: =D13/$C$13 -> 0 | E14: 0 | F14: 1 | G14: 0 | H14: 0 | I14: 0
C15: Elevage | D15: N_sev | E15: N_PS | F15: NE_E | G15: PS | H15: PS-E | I15: E
B16: porc/truie | E16: 22.6 | G16: =22.6/(1-0.037) -> 23.46832814 | H16: =I16 -> 22.6 | I16: 22.6
B17: Gain kg vif | C17: =SUM(D17:I17*D14:I14) -> 2697.753577 | D17: 280 | E17: =D17+G17 -> 796.3032191 | F17: =F18/F19 -> 2697.753577 | G17: =(30-8)*G16 -> 516.3032191 | H17: =(117-8)*H16 -> 2463.4 | I17: =(117-30)*I16 -> 1966.2
B18: Aliment | C18: =SUM(D18:I18*D14:I14) -> 7472.777408 | D18: 1218 | E18: =D18+G18 -> 2085.389408 | F18: =E18+I18 -> 7472.777408 | G18: =G17*G19 -> 867.3894081 | H18: =H17*H19 -> 6109.232 | I18: =I17*I19 -> 5387.388
B19: IC global | C19: =C18/C17 -> 2.77 | D19: =D18/D17 -> 4.35 | E19: =E18/E17 -> 2.61883835 | F19: 2.77 | G19: 1.68 | H19: 2.48 | I19: 2.74
B20: CV | C20: =SUM(D18:I18*D20:I20*D14:I14)/SUM(D14:I14*D18:I18) -> 0.06137184116 | D20: =D21/D19 -> 0.2206896552 | E20: =G20 -> 0.119047619 | F20: =F21/F19 -> 0.06137184116 | G20: =G21/G19 -> 0.119047619 | H20: =H21/H19 -> 0.06451612903 | I20: =I21/I19 -> 0.06569343066
B21: Ecartype | C21: =C19*C20 -> 0.17 | D21: 0.96 | E21: =E19*E20 -> 0.3117664702 | F21: 0.17 | G21: 0.2 | H21: 0.16 | I21: 0.18
B23: MAT Standard | C23: =SUM(D23:I23*D18:I18*D14:I14)/C18 -> 17.56915485 | D23: =16.5*0.26+16.5*0.74 -> 16.5 | E23: =(19.5*($E$18-$D$18)+$D$23*$D$18)/$E$18 -> 17.74780926 | F23: =((17.5*0.6+17.5*0.4)*($F$18-$E$18)+($E$23*$E$18))/$F$18 -> 17.56915485 | G23: 19.5 | H23: =((17.5*0.6+17.5*0.4)*($H$18-$G$18)+($G$23*$G$18))/$H$18 -> 17.78396021 | I23: =(17.5*0.4+17.5*0.6) -> 17.5
B24: MAT Biphase | C24: =SUM(D24:I24*D18:I18*D14:I14)/C18 -> 15.75855569 | D24: =16.5*0.26+14*0.74 -> 14.65 | E24: =(18.3*($E$18-$D$18)+$D$24*$D$18)/$E$18 -> 16.16816794 | F24: =((16*0.6+15*0.4)*($F$18-$E$18)+($E$24*$E$18))/$F$18 -> 15.75855569 | G24: 18.26 | H24: =((16*0.6+15*0.4)*($H$18-$G$18)+($G$24*$G$18))/$H$18 -> 15.97766708 | I24: =(16*0.4+15*0.6) -> 15.4
B25: P standard | C25: =SUM(D25:I25*D18:I18*D14:I14)/C18 -> 0.6030167355 | D25: =0.65*0.35+0.65*0.65 -> 0.65 | E25: =(0.68*($E$18-$D$18)+$D$25*$D$18)/$E$18 -> 0.6624780926 | F25: =((0.58*0.6+0.58*0.4)*($F$18-$E$18)+($E$25*$E$18))/$F$18 -> 0.6030167355 | G25: 0.68 | H25: =((0.58*0.6+0.58*0.4)*($H$18-$G$18)+($G$25*$G$18))/$H$18 -> 0.5941980106 | I25: =(0.58*0.4+0.58*0.6) -> 0.58
B26: P biphase | C26: =SUM(D26:I26*D18:I18*D14:I14)/C18 -> 0.489916493 | D26: =0.6*0.35+0.5*0.65 -> 0.535 | E26: =(0.6*($E$18-$D$18)+$D$26*$D$18)/$E$18 -> 0.5620358674 | F26: =((0.47*0.6+0.45*0.4)*($F$18-$E$18)+($E$26*$E$18))/$F$18 -> 0.489916493 | G26: 0.572 | H26: =((0.47*0.6+0.45*0.4)*($H$18-$G$18)+($G$26*$G$18))/$H$18 -> 0.4776178117 | I26: =(0.47*0.4+0.45*0.6) -> 0.458
A33: Feuille de calcul - ne pas supprimer
A35: Analyse - Indice de consommation
B36: =C$19-C$21*3 -> 2.26 | C36: =_xlfn.NORM.DIST($B36,$C$19,$C$21,TRUE) -> 0.001349898032 | D36: =_xlfn.NORM.DIST($B36,$C$19,$C$21,FALSE) -> 0.02606969654
B37: =B36+C$21*3*2/15 -> 2.328 | C37: 0.004661188024 | D37: 0.07989981902
B38: 2.396 | C38: 0.01390344751 | D38: 0.2086740756
B39: 2.464 | C39: 0.03593031911 | D39: 0.4644126959
B40: 2.532 | C40: 0.08075665923 | D40: 0.8807497979
B41: 2.6 | C41: 0.1586552539 | D41: 1.423357203
B42: 2.668 | C42: 0.2742531178 | D42: 1.960144723
B43: 2.736 | C43: 0.4207402906 | D43: 2.300251141
B44: 2.804 | C44: 0.5792597094 | D44: 2.300251141
B45: 2.872 | C45: 0.7257468822 | D45: 1.960144723
B46: 2.94 | C46: 0.8413447461 | D46: 1.423357203
B47: 3.008 | C47: 0.9192433408 | D47: 0.8807497979
B48: 3.076 | C48: 0.9640696809 | D48: 0.4644126959
B49: 3.144 | C49: 0.9860965525 | D49: 0.2086740756
B50: 3.212 | C50: 0.995338812 | D50: 0.07989981902
B51: 3.28 | C51: 0.998650102 | D51: 0.02606969654
B53: =Données!C13 -> 2.666354808 | D53: 0
B54: =B53 -> 2.666354808 | C54: =_xlfn.NORM.DIST($B54,$C$19,$C$21,TRUE) -> 0.2710376978 | D54: =_xlfn.NORM.DIST($B54,$C$19,$C$21,FALSE) -> 1.948704749
A56: Analyse - Teneur en protéines des aliments
C57: MAT | D57: 0.003
B58: Standard | C58: =C23/100 -> 0.1756915485
B59: Biphase | C59: =C24/100 -> 0.1575855569
B60: Elevage | C60: =Données!C14/100 -> 0.1524067388 | D60: =C59-C60 -> 0.005178818139
D61: =-D60*100 -> -0.5178818139 | F61: =VLOOKUP(1,ComProt,2,FALSE) -> est facile à atteindre techniquement.
C62: 0 | D62: =C62+$D$57 -> 0.003 | E62: =IF($D$60<$D62,IF($D$60>$C62,1,0),0) -> 0 | F62: est très facile à atteindre techniquement.
C63: =D62 -> 0.003 | D63: =+D62+$D$57 -> 0.006 | E63: =IF($D$60<$D63,IF($D$60>$C63,1,0),0) -> 1 | F63: est facile à atteindre techniquement.
C64: =D63 -> 0.006 | D64: =+D63+$D$57 -> 0.009 | E64: 0 | F64: nécessite un assez bon niveau technique.
C65: =D64 -> 0.009 | D65: 0.012 | E65: 0 | F65: nécessite un bon niveau technique.
C66: =D65 -> 0.012 | D66: =+D65+$D$57*2 -> 0.018 | E66: 0 | F66: nécessite un très bon niveau technique.
C67: =D66 -> 0.018 | D67: 1 | E67: 0 | F67: peut être difficile à atteindre.
A68: Analyse - Teneur en phosphore des aliments
C69: P
B70: Standard | C70: =C25/100 -> 0.006030167355
B71: Biphase | C71: =C26/100 -> 0.00489916493
B72: Elevage | C72: =Données!C15/100 -> 0.004644880738 | D72: =C71-C72 -> 0.0002542841919
D73: =-D72*100 -> -0.02542841919 | F73: =VLOOKUP(1,ComP,2,FALSE) -> nécessite un assez bon niveau technique.
C74: 0 | D74: 0.000125 | E74: =IF($D$72<$D74,IF($D$72>$C74,1,0),0) -> 0 | F74: est très facile à atteindre techniquement.
C75: =D74 -> 0.000125 | D75: =D74+0.000125 -> 0.00025 | E75: 0 | F75: est facile à atteindre techniquement.
C76: =D75 -> 0.00025 | D76: =D75+0.000125 -> 0.000375 | E76: 1 | F76: nécessite un assez bon niveau technique.
C77: 0.000375 | D77: 0.0005 | E77: 0 | F77: nécessite un bon niveau technique.
C78: 0.0005 | D78: 0.000625 | E78: 0 | F78: nécessite un très bon niveau technique.
C79: 0.000625 | D79: 1 | E79: 0 | F79: peut être difficile à atteindre.
A82: Analyse - Rejets d'azote
C84: Standard Corpen | D84: Biphase Corpen | E84: BRS (Biph. Moy.) | F84: BRS (Réel)
C85: =Standard!E23/Standard!$F$23 -> 1.208249107 | D85: =Standard!F23/Standard!$F$23 -> 1 | E85: =(C94+G96)/Standard!$F$23 -> 1 | F85: =C94/Standard!$F$23 -> 0.9309707214
C86: =Standard!E23 -> 20871.62798 | D86: =Standard!F23 -> 17274.27553 | E86: =C94+G96 -> 17274.27553 | F86: =C94 -> 16081.84475
C88: Elevage | E88: Perf. | F88: Alim. | G88: Biph
B89: N ingéré | C89: =Données!C31 -> 38068.80272 | E89: =Elevage!BE64*('Bilan Simplifié'!G43/'Bilan Simplifié'!G42) -> 38726.95061 | F89: =F91+F92 -> 38981.59643 | G89: =Elevage!BC64 -> 39639.74432
B90: Litière | C90: =Données!C32 -> 0 | E90: =C90 -> 0 | F90: =E90 -> 0 | G90: 0
B91: N Fixé | C91: =C89-C92 -> 15315.76827 | E91: =G91 -> 15199.62615 | F91: =C91 -> 15315.76827 | G91: =G89-G92 -> 15199.62615
B92: N Excrété | C92: =Données!C33 -> 22753.03445 | E92: =E89-E91 -> 23527.32447 | F92: =G92-(E92-C92) -> 23665.82816 | G92: =Elevage!AY64 -> 24440.11817
B93: Gaz | C93: =C92-C94 -> 6671.1897 | E93: =C93/C92*E92 -> 6898.211533 | F93: =C93/C92*F92 -> 6938.820815 | G93: =C93/C92*G92 -> 7165.842648
B94: Effluent | C94: =Données!C34 -> 16081.84475 | E94: =E92-E93+E90 -> 16629.11293 | F94: =F92-F93+F90 -> 16727.00734 | G94: =G92-G93+G90 -> 17274.27553
B96: Gain BRS(réel) / (BRS (biph) | C96: =G96/(C94+G96) -> 0.06902927857 | E96: =E94-C94 -> 547.2681843 | F96: =(F94-C94) -> 645.162593 | G96: =(G94-C94) -> 1192.430777
B97: Gain BRS(réel) / (Biphase Corpen) | C97: =-(F86-D86)/D86 -> 0.06902927857 | E97: =MIN(MAX(IF(-$C$96<0,E96/SUM(E96:F96),0),0),1) -> 0.4589517436 | F97: =MIN(MAX(IF(-$C$96<0,F96/SUM(E96:F96),0),0),1) -> 0.5410482564
C98: =IF(C96<0,CONCATENATE(" Azote : + ",FIXED(-C96*100,1,TRUE),"%"),CONCATENATE(" Azote : - ",FIXED(C96*100,1,TRUE),"%")) -> Azote : - 6.9%
A100: Analyse - Rejets de Phoshore
C102: =C84 -> Standard Corpen | D102: =D84 -> Biphase Corpen | E102: =E84 -> BRS (Biph. Moy.) | F102: =F84 -> BRS (Réel)
C103: =(Standard!E32/2.29)/(Standard!$F$32/2.29) -> 1.414378373 | D103: =(Standard!F32/2.29)/(Standard!$F$32/2.29) -> 1 | E103: =(C112+G114)/(Standard!$F$32/2.29) -> 0.9958824512 | F103: =C112/(Standard!$F$32/2.29) -> 0.9045669486
C104: =Standard!E32 -> 14483.02492 | D104: =Standard!F32 -> 10239.8518 | E104: =(C112+G114)*2.2913 -> 10203.47779 | F104: =C112*'Bilan Simplifié'!E30/'Bilan Simplifié'!D30 -> 9268.161868
C106: Elevage | D106: Biph | E106: Perf. | F106: Alim.
B107: P ingéré | C107: =Données!C37 -> 7251.362779 | E107: =Elevage!BE64*('Bilan Simplifié'!G44/'Bilan Simplifié'!G42) -> 7376.727088 | F107: =C107/Données!C13*C19 -> 7533.234076 | G107: =Elevage!BD64 -> 7613.408283
B108: P Litière | C108: =Données!C38 -> 0 | E108: =C108 -> 0 | F108: =E108 -> 0 | G108: =F108 -> 0
B109: P Fixé | C109: =C107-C110 -> 3206.545532 | E109: =G109 -> 3160.269108 | F109: =C109 -> 3206.545532 | G109: =G107-G110 -> 3160.269108
B110: P Excrété | C110: =Données!C39 -> 4044.817248 | E110: =E107-E109 -> 4216.457979 | F110: =G110-(E110-C110) -> 4281.498443 | G110: =Elevage!AZ64/2.291367 -> 4453.139175
C111: 0 | E111: =C111/C110*E110 -> 0 | F111: =C111/C110*F110 -> 0 | G111: =E111/E110*G110 -> 0
B112: P Effluent | C112: =Données!C40 -> 4044.817248 | E112: =E110-E111+E108 -> 4216.457979 | F112: =F110-F111+F108 -> 4281.498443 | G112: =G110-G111+G108 -> 4453.139175
B114: Gain BRS(réel) / (BRS (biph) | C114: =G114/(C112+G114) -> 0.09169305323 | E114: =(E112-C112) -> 171.6407318 | F114: =(F112-C112) -> 236.6811956 | G114: =(G112-C112) -> 408.3219274
B115: Gain BRS(réel) / (Biphase Corpen) | C115: =-(F104-D104)/D104 -> 0.09489296825 | E115: =MIN(MAX(IF(-$C$114<0,E114/SUM(E114:F114),0),0),1) -> 0.420356391 | F115: =MIN(MAX(IF(-$C$114<0,F114/SUM(E114:F114),0),0),1) -> 0.579643609
C116: =IF(C114<0,CONCATENATE(" Phosphore : + ",FIXED(-C114*100,1,TRUE),"%"),CONCATENATE("Phosphore : - ",FIXED(C114*100,1,TRUE),"%")) -> Phosphore : - 9.2%
A120: Préparation des messages | K120: Commentaires
A121: message 1 | B121: - L'indice de consommation global (kg porc sorti / kg aliment entré) estimé par le BRS s'élève à | K121: =CONCATENATE(B121,FIXED(Données!C13,2,TRUE), B122,B123,B124,FIXED(C54*100,0,TRUE),B125) -> - L'indice de consommation global (kg porc sorti / kg aliment entré) estimé par le BRS s'élève à 2.67 kg/kg. Ceci place l'élevage dans les 27% des meilleurs compte tenu de la variablité des élevages suivis en Gestion Technico-Economique en 2014.
B122: kg/kg.
B124: Ceci place l'élevage dans les
B125: % des meilleurs compte tenu de la variablité des élevages suivis en Gestion Technico-Economique en 2014.
A126: message 2 | B126: - La teneur moyenne en protéines de l'aliment est de | K126: =IF(ISNA(F61),CONCATENATE(B126,FIXED(C60*100,1,TRUE), "% Elle est supérieure à celle qu'aurait cet élevage avec une alimentation bipphase"),CONCATENATE(B126,FIXED(C60*100,1,TRUE), B127,FIXED(D60*100,1,TRUE),B128,FIXED(C59*100,1,TRUE),B129,B130,F61)) -> - La teneur moyenne en protéines de l'aliment est de 15.2 % . Elle est inférieure de 0.5 point(s) à la valeur de 15.8 % qu'aurait cet élevage avec une alimentation biphase. Cet écart est facile à atteindre techniquement.
B127: % . Elle est inférieure de
B128: point(s) à la valeur de
B129: % qu'aurait cet élevage avec une alimentation biphase.
B130: Cet écart
A131: message 3 | B131: - La teneur moyenne en phosphore de l'aliment est de | K131: =IF(ISNA(F73),CONCATENATE(B131,FIXED(C72*100,2,TRUE), "% Elle est supérieure à celle qu'aurait cet élevage avec une alimentation bipphase"),CONCATENATE(B131,FIXED(C72*100,2,TRUE), B132,FIXED(D72*100,2,TRUE),B133,FIXED(C71*100,2,TRUE),B134,B135,F73)) -> - La teneur moyenne en phosphore de l'aliment est de 0.46 % . Elle est inférieure de 0.03 point(s) à la valeur de 0.49 % qu'aurait cet élevage avec une alimentation biphase.Cet écart nécessite un assez bon niveau technique.
B132: % . Elle est inférieure de
B133: point(s) à la valeur de
B134: % qu'aurait cet élevage avec une alimentation biphase.
B135: Cet écart
A136: message 4 | B136: - La réduction de la quantité d'azote épandable (BRS Réel) par rapport à la valeur calculée avec les références "Biphase Corpen" est estimée à | K136: =IF($C$97<0,CONCATENATE("- La quantité d'azote épandable est supérieure de ",FIXED(-$C$97*100,1,TRUE),"% à celle qu'aurait cet élevage avec les références Biphase Corpen"),CONCATENATE($B$136,FIXED($C$97*100,1,TRUE),$B$137)) -> - La réduction de la quantité d'azote épandable (BRS Réel) par rapport à la valeur calculée avec les références "Biphase Corpen" est estimée à 6.9%
B137: %
B138: :
B139: % de cette réduction provient des performances et
B140: % de cette réduction provient de l'alimentation.
A142: message 4b | B142: - La réduction de la quantité d'azote épandable (BRS Réel) par rapport à celle du même élevage alimenté en biphase avec des performances moyennes (BRS Biph. Moy.) est estimée à | K142: =IF($C$96<0,CONCATENATE("- La quantité d'azote épandable est supérieure de ",FIXED(-$C$96*100,1,TRUE), "% à celle qu'aurait cet élevage avec une alimentation biphase avec des performances moyennes"),CONCATENATE($B$142,FIXED($C$96*100,1,TRUE), $B$137)) -> - La réduction de la quantité d'azote épandable (BRS Réel) par rapport à celle du même élevage alimenté en biphase avec des performances moyennes (BRS Biph. Moy.) est estimée à 6.9%
A147: message 4c | K147: =IF($C$97<0," ",CONCATENATE("- ",IF($E$97<>0,(CONCATENATE(FIXED($E$97*100,0,TRUE),$B$139)),""),IF($F$97<>0,(CONCATENATE(FIXED($F$97*100,0,TRUE),$B$140)),""))) -> - 46 % de cette réduction provient des performances et 54 % de cette réduction provient de l'alimentation.
A148: message 5 | B148: - La réduction de la quantité de phosphore épandable (BRS Réel) par rapport à la valeur calculée avec les références "Biphase Corpen" est estimée à | K148: =IF($C$115<0,CONCATENATE("- La quantité de phosphore épandable est supérieure de ",FIXED(-$C$115*100,1,TRUE),"% à celle qu'aurait cet élevage avec les référence Biphase Corpen"),CONCATENATE($B$148,FIXED($C$115*100,1,TRUE),$B$149)) -> - La réduction de la quantité de phosphore épandable (BRS Réel) par rapport à la valeur calculée avec les références "Biphase Corpen" est estimée à 9.5%
B149: %
B150: :
B151: % de cette réduction provient des performances et
B152: % de l'alimentation.
A153: message 5b | B153: - La réduction de la quantité de phosphore épandable (BRS Réel) par rapport à celle du même élevage alimenté en biphase avec des performances moyennes (BRS Biph. Moy.) est estimée à | K153: =IF($C$114<0,CONCATENATE("- La quantité de phosphore épandable est supérieure de ",FIXED(-$C$114*100,1,TRUE),"% à celle qu'aurait cet élevage avec une alimentation biphase avec des performances moyennes"),CONCATENATE($B$153,FIXED($C$114*100,1,TRUE),$B$149)) -> - La réduction de la quantité de phosphore épandable (BRS Réel) par rapport à celle du même élevage alimenté en biphase avec des performances moyennes (BRS Biph. Moy.) est estimée à 9.2%
K158: =IF($C$115<0," ",CONCATENATE("- ",IF($E$115<>0,(CONCATENATE(FIXED($E$115*100,0,TRUE),$B$139)),""),IF($F$115<>0,(CONCATENATE(FIXED($F$115*100,0,TRUE),$B$140)),""))) -> - 42 % de cette réduction provient des performances et 58 % de cette réduction provient de l'alimentation.
A159: Message 0 | B159: Compte tenu de ses ventes cet élevage peut être considéré à :
K161: =FIXED(-D116*100,5,TRUE) -> 0.00000
K163: =D116 -> 0

Sheet Imprimer (hidden)
C8: Résultats des Calculs
C21: Références du bilan simplifé
C23: Document du CORPEN de référence
C25: Description du Bilan Simplifé
C31: Envoyez nous vos commentaires

Sheet Feuil1 (hidden)
